Workbook

Sheet Tabelle1
A1: Test 1 | G1: Test 2 | M1: Test 3 | S1: Test 4 | Y1: Test 5 | AE1: Test 6 | AK1: Test 7 | AQ1: Test 8 | AW1: Test 9 | AX1: Infrared | BC1: Test 10
B2: Temp | C2: Kraft | D2: Zeit | E2: Zeit zu Null | H2: Temp | I2: Kraft | J2: Zeit | K2: Zeit zu Null | N2: Temp | O2: Kraft | P2: Zeit | Q2: Zeit zu Null | T2: Temp | U2: Kraft | V2: Zeit | W2: Zeit zu Null | Z2: Temp | AA2: Kraft | AB2: Zeit | AC2: Zeit zu Null | AF2: Temp | AG2: Kraft | AH2: Zeit | AI2: Zeit zu Null | AL2: Temp | AM2: Kraft | AN2: Zeit | AO2: Zeit zu Null | AR2: Temp | AS2: Kraft | AT2: Zeit | AU2: Zeit zu Null | AX2: Temp | AY2: Kraft | AZ2: Zeit | BA2: Zeit zu Null | BD2: Temp | BE2: Kraft | BF2: Zeit | BG2: Zeit zu Null
B3: 19.5 | C3: 0.18543 | D3: 9.9 | E3: =SUM(D3,-9.9) -> 0 | H3: 21.7 | I3: 0.394563 | J3: 14.92 | K3: =SUM(J3,-14.92) -> 0 | N3: 22 | O3: 0.01557 | P3: 10.74 | Q3: =SUM(P3,-10.74) -> 0 | T3: 19.2 | U3: 0.02364 | V3: 32.759998 | W3: =SUM(V3,-32.759998) -> 0 | Z3: 19.8 | AA3: 0.41203 | AB3: 21.76 | AC3: =SUM(AB3,-21.76) -> 0 | AF3: 20 | AG3: 0.00121 | AH3: 17.719999 | AI3: =SUM(AH3,-17.719999) -> 0 | AL3: 20 | AM3: 0.0033 | AN3: 6.52 | AO3: =SUM(AN3,-6.52) -> 0 | AR3: 20 | AS3: 2.2011 | AT3: 4.16 | AU3: =SUM(AT3,-4.16) -> 0 | AX3: 21 | AY3: 0.9136 | AZ3: 16.5 | BA3: =SUM(AZ3,-16.5) -> 0 | BD3: 20 | BE3: 0.003 | BF3: 32.580002 | BG3: =SUM(BF3,-32.580002) -> 0
B4: 19.5 | C4: 1.89 | D4: 9.92 | E4: 0.02 | H4: 21.7 | I4: 2.059 | J4: 14.94 | K4: 0.02 | N4: 22 | O4: 0.00925 | P4: 10.76 | Q4: 0.02 | T4: 19.2 | U4: 1.13 | V4: 32.779999 | W4: 0.020001 | Z4: 19.8 | AA4: 2.15775 | AB4: 21.780001 | AC4: 0.020001 | AF4: 20 | AG4: 0.04225 | AH4: 17.74 | AI4: 0.020001 | AL4: 20 | AM4: 0.03575 | AN4: 6.54 | AO4: 0.02 | AR4: 20 | AS4: 8.019 | AT4: 4.18 | AU4: 0.02 | AX4: 21 | AY4: 2.69375 | AZ4: 16.52 | BA4: 0.02 | BD4: 20 | BE4: 0.02125 | BF4: 32.599998 | BG4: 0.019996
B5: 19.5 | C5: 4.1 | D5: 9.94 | E5: 0.04 | H5: 21.7 | I5: 3.81825 | J5: 14.96 | K5: 0.04 | N5: 22 | O5: 0.0295 | P5: 10.78 | Q5: 0.04 | T5: 19.2 | U5: 3.598 | V5: 32.799999 | W5: 0.040001 | Z5: 19.8 | AA5: 3.85575 | AB5: 21.799999 | AC5: 0.039999 | AF5: 20 | AG5: 0.05275 | AH5: 17.76 | AI5: 0.040001 | AL5: 20 | AM5: 4.2465 | AN5: 6.56 | AO5: 0.04 | AR5: 20 | AS5: 17.80275 | AT5: 4.2 | AU5: 0.04 | AX5: 21 | AY5: 4.432 | AZ5: 16.540001 | BA5: 0.040001 | BD5: 20 | BE5: 0.01475 | BF5: 32.619999 | BG5: 0.039997
B6: 19.5 | C6: 6.591 | D6: 9.96 | E6: 0.06 | H6: 21.7 | I6: 5.9075 | J6: 14.98 | K6: 0.06 | N6: 22 | O6: 0.71825 | P6: 10.8 | Q6: 0.06 | T6: 19.2 | U6: 6.91625 | V6: 32.82 | W6: 0.060002 | Z6: 19.8 | AA6: 4.98725 | AB6: 21.82 | AC6: 0.06 | AF6: 20 | AG6: 0.56325 | AH6: 17.780001 | AI6: 0.060002 | AL6: 20 | AM6: 11.494 | AN6: 6.58 | AO6: 0.06 | AR6: 20 | AS6: 28.615 | AT6: 4.22 | AU6: 0.06 | AX6: 21 | AY6: 6.37375 | AZ6: 16.559999 | BA6: 0.059999 | BD6: 20 | BE6: 0.1295 | BF6: 32.639999 | BG6: 0.059997
B7: 19.5 | C7: 8.966 | D7: 9.98 | E7: 0.08 | H7: 21.7 | I7: 7.80325 | J7: 15 | K7: 0.08 | N7: 22 | O7: 1.822 | P7: 10.82 | Q7: 0.08 | T7: 19.2 | U7: 8.9805 | V7: 32.84 | W7: 0.080002 | Z7: 19.8 | AA7: 5.51975 | AB7: 21.84 | AC7: 0.08 | AF7: 20 | AG7: 3.28275 | AH7: 17.799999 | AI7: 0.08 | AL7: 20 | AM7: 19.355749 | AN7: 6.6 | AO7: 0.08 | AR7: 20 | AS7: 40.471249 | AT7: 4.24 | AU7: 0.08 | AX7: 21 | AY7: 8.29275 | AZ7: 16.58 | BA7: 0.08 | BD7: 20 | BE7: 0.7775 | BF7: 32.66 | BG7: 0.079998
B8: 19.5 | C8: 11.07 | D8: 10 | E8: 0.1 | H8: 21.7 | I8: 9.86 | J8: 15.02 | K8: 0.1 | N8: 22 | O8: 3.008 | P8: 10.84 | Q8: 0.1 | T8: 19.2 | U8: 9.835 | V8: 32.860001 | W8: 0.100003 | Z8: 19.8 | AA8: 3.265 | AB8: 21.860001 | AC8: 0.100001 | AF8: 20 | AG8: 6.4435 | AH8: 17.82 | AI8: 0.100001 | AL8: 20 | AM8: 27.591499 | AN8: 6.62 | AO8: 0.1 | AR8: 20 | AS8: 53.765499 | AT8: 4.26 | AU8: 0.1 | AX8: 21 | AY8: 10.46775 | AZ8: 16.6 | BA8: 0.1 | BD8: 20 | BE8: 2.94425 | BF8: 32.68 | BG8: 0.099998
B9: 19.5 | C9: 13.585 | D9: 10.02 | E9: 0.12 | H9: 21.7 | I9: 11.67275 | J9: 15.04 | K9: 0.12 | N9: 22 | O9: 4.0535 | P9: 10.86 | Q9: 0.12 | T9: 19.2 | U9: 12.109 | V9: 32.880001 | W9: 0.120003 | Z9: 19.8 | AA9: 4.15525 | AB9: 21.879999 | AC9: 0.119999 | AF9: 20 | AG9: 8.93075 | AH9: 17.84 | AI9: 0.120001 | AL9: 20 | AM9: 35.855 | AN9: 6.64 | AO9: 0.12 | AR9: 20 | AS9: 66.977249 | AT9: 4.28 | AU9: 0.12 | AX9: 21 | AY9: 12.48425 | AZ9: 16.620001 | BA9: 0.120001 | BD9: 20 | BE9: 5.11775 | BF9: 32.700001 | BG9: 0.119999
B10: 19.5 | C10: 15.966 | D10: 10.04 | E10: 0.14 | H10: 21.7 | I10: 13.60025 | J10: 15.06 | K10: 0.14 | N10: 22 | O10: 5.23075 | P10: 10.88 | Q10: 0.14 | T10: 19.2 | U10: 15.0805 | V10: 32.900002 | W10: 0.140004 | Z10: 19.8 | AA10: 6.1205 | AB10: 21.9 | AC10: 0.14 | AF10: 20 | AG10: 10.508 | AH10: 17.860001 | AI10: 0.140002 | AL10: 20 | AM10: 44.092251 | AN10: 6.66 | AO10: 0.14 | AR10: 20 | AS10: 80.282501 | AT10: 4.3 | AU10: 0.14 | AX10: 21 | AY10: 14.37625 | AZ10: 16.639999 | BA10: 0.139999 | BD10: 20 | BE10: 7.3865 | BF10: 32.720001 | BG10: 0.139999
B11: 19.5 | C11: 18.535 | D11: 10.06 | E11: 0.16 | H11: 21.7 | I11: 15.635 | J11: 15.08 | K11: 0.16 | N11: 22 | O11: 6.35875 | P11: 10.9 | Q11: 0.16 | T11: 19.2 | U11: 18.37825 | V11: 32.919998 | W11: 0.16 | Z11: 19.8 | AA11: 7.7505 | AB11: 21.92 | AC11: 0.16 | AF11: 20 | AG11: 12.5335 | AH11: 17.879999 | AI11: 0.16 | AL11: 20 | AM11: 51.947498 | AN11: 6.68 | AO11: 0.16 | AR11: 20 | AS11: 93.499252 | AT11: 4.32 | AU11: 0.16 | AX11: 21 | AY11: 16.700251 | AZ11: 16.66 | BA11: 0.16 | BD11: 20 | BE11: 9.30375 | BF11: 32.740002 | BG11: 0.16
B12: 19.5 | C12: 20.914 | D12: 10.08 | E12: 0.18 | H12: 21.7 | I12: 17.560249 | J12: 15.1 | K12: 0.18 | N12: 22 | O12: 7.45025 | P12: 10.92 | Q12: 0.18 | T12: 19.2 | U12: 21.195749 | V12: 32.939999 | W12: 0.180001 | Z12: 19.8 | AA12: 9.087 | AB12: 21.940001 | AC12: 0.180001 | AF12: 20 | AG12: 15.02675 | AH12: 17.9 | AI12: 0.180001 | AL12: 20 | AM12: 59.804001 | AN12: 6.7 | AO12: 0.18 | AR12: 20 | AS12: 106.80925 | AT12: 4.34 | AU12: 0.18 | AX12: 21 | AY12: 18.728251 | AZ12: 16.68 | BA12: 0.18 | BD12: 20 | BE12: 11.6395 | BF12: 32.759998 | BG12: 0.179996
B13: 19.5 | C13: 23.106 | D13: 10.1 | E13: 0.2 | H13: 21.7 | I13: 19.615499 | J13: 15.12 | K13: 0.2 | N13: 22 | O13: 8.6285 | P13: 10.94 | Q13: 0.2 | T13: 19.2 | U13: 24.247 | V13: 32.959999 | W13: 0.200001 | Z13: 19.8 | AA13: 10.512 | AB13: 21.959999 | AC13: 0.199999 | AF13: 20 | AG13: 17.61425 | AH13: 17.92 | AI13: 0.200001 | AL13: 20 | AM13: 67.654251 | AN13: 6.72 | AO13: 0.2 | AR13: 20 | AS13: 120.008499 | AT13: 4.36 | AU13: 0.2 | AX13: 21 | AY13: 20.872 | AZ13: 16.700001 | BA13: 0.200001 | BD13: 20 | BE13: 14.15475 | BF13: 32.779999 | BG13: 0.199997
B14: 19.5 | C14: 25.723 | D14: 10.12 | E14: 0.22 | H14: 21.7 | I14: 21.349001 | J14: 15.14 | K14: 0.22 | N14: 22 | O14: 9.6125 | P14: 10.96 | Q14: 0.22 | T14: 19.2 | U14: 27.22275 | V14: 32.98 | W14: 0.220002 | Z14: 19.8 | AA14: 12.53 | AB14: 21.98 | AC14: 0.22 | AF14: 20 | AG14: 20.33 | AH14: 17.940001 | AI14: 0.220002 | AL14: 20 | AM14: 75.467247 | AN14: 6.74 | AO14: 0.22 | AR14: 20 | AS14: 132.990997 | AT14: 4.38 | AU14: 0.22 | AX14: 21 | AY14: 22.93775 | AZ14: 16.719999 | BA14: 0.219999 | BD14: 20 | BE14: 16.699249 | BF14: 32.799999 | BG14: 0.219997
B15: 19.5 | C15: 28.098 | D15: 10.14 | E15: 0.24 | H15: 21.7 | I15: 23.304001 | J15: 15.16 | K15: 0.24 | N15: 22 | O15: 10.736 | P15: 10.98 | Q15: 0.24 | T15: 19.2 | U15: 30.383249 | V15: 33 | W15: 0.240002 | Z15: 19.8 | AA15: 14.33075 | AB15: 22 | AC15: 0.24 | AF15: 20 | AG15: 23.07 | AH15: 17.959999 | AI15: 0.24 | AL15: 20 | AM15: 83.269249 | AN15: 6.76 | AO15: 0.24 | AR15: 20 | AS15: 145.973755 | AT15: 4.4 | AU15: 0.24 | AX15: 21 | AY15: 25.10725 | AZ15: 16.74 | BA15: 0.24 | BD15: 20 | BE15: 19.85025 | BF15: 32.82 | BG15: 0.239998
B16: 19.5 | C16: 30.702 | D16: 10.16 | E16: 0.26 | H16: 21.7 | I16: 25.237 | J16: 15.18 | K16: 0.26 | N16: 22 | O16: 11.79 | P16: 11 | Q16: 0.26 | T16: 19.2 | U16: 33.77 | V16: 33.02 | W16: 0.260002 | Z16: 19.8 | AA16: 16.12575 | AB16: 22.02 | AC16: 0.26 | AF16: 20 | AG16: 25.146749 | AH16: 17.98 | AI16: 0.260001 | AL16: 20 | AM16: 90.915253 | AN16: 6.78 | AO16: 0.26 | AR16: 20 | AS16: 159.089996 | AT16: 4.42 | AU16: 0.26 | AX16: 21 | AY16: 27.50275 | AZ16: 16.76 | BA16: 0.26 | BD16: 20 | BE16: 22.571751 | BF16: 32.84 | BG16: 0.259998
B17: 19.5 | C17: 33.001 | D17: 10.18 | E17: 0.28 | H17: 21.7 | I17: 27.084 | J17: 15.2 | K17: 0.28 | N17: 22 | O17: 12.85575 | P17: 11.02 | Q17: 0.28 | T17: 19.2 | U17: 36.656502 | V17: 33.040001 | W17: 0.280003 | Z17: 19.8 | AA17: 18.026501 | AB17: 22.040001 | AC17: 0.280001 | AF17: 20 | AG17: 27.59025 | AH17: 18 | AI17: 0.280001 | AL17: 20 | AM17: 98.640747 | AN17: 6.8 | AO17: 0.28 | AR17: 20 | AS17: 172.136246 | AT17: 4.44 | AU17: 0.28 | AX17: 21 | AY17: 29.702749 | AZ17: 16.780001 | BA17: 0.280001 | BD17: 20 | BE17: 25.674 | BF17: 32.860001 | BG17: 0.279999
B18: 19.5 | C18: 35.318 | D18: 10.2 | E18: 0.3 | H18: 21.7 | I18: 29.0385 | J18: 15.22 | K18: 0.3 | N18: 22 | O18: 13.76175 | P18: 11.04 | Q18: 0.3 | T18: 19.2 | U18: 39.911499 | V18: 33.060001 | W18: 0.300003 | Z18: 19.8 | AA18: 19.769751 | AB18: 22.059999 | AC18: 0.299999 | AF18: 20 | AG18: 29.877251 | AH18: 18.02 | AI18: 0.300001 | AL18: 20 | AM18: 106.460999 | AN18: 6.82 | AO18: 0.3 | AR18: 20 | AS18: 185.083252 | AT18: 4.46 | AU18: 0.3 | AX18: 21 | AY18: 32.032249 | AZ18: 16.799999 | BA18: 0.299999 | BD18: 20 | BE18: 28.6525 | BF18: 32.880001 | BG18: 0.299999
B19: 19.5 | C19: 37.824 | D19: 10.22 | E19: 0.32 | H19: 21.7 | I19: 30.556 | J19: 15.24 | K19: 0.32 | N19: 22 | O19: 14.114 | P19: 11.06 | Q19: 0.32 | T19: 19.2 | U19: 42.873001 | V19: 33.080002 | W19: 0.320004 | Z19: 19.8 | AA19: 21.660749 | AB19: 22.08 | AC19: 0.32 | AF19: 20 | AG19: 32.291 | AH19: 18.040001 | AI19: 0.320002 | AL19: 20 | AM19: 113.910751 | AN19: 6.84 | AO19: 0.32 | AR19: 20 | AS19: 197.836746 | AT19: 4.48 | AU19: 0.32 | AX19: 21 | AY19: 34.055248 | AZ19: 16.82 | BA19: 0.32 | BD19: 20 | BE19: 31.716249 | BF19: 32.900002 | BG19: 0.32
B20: 19.5 | C20: 40.173 | D20: 10.24 | E20: 0.34 | H20: 21.7 | I20: 32.398998 | J20: 15.26 | K20: 0.34 | N20: 22 | O20: 14.363 | P20: 11.08 | Q20: 0.34 | T20: 19.2 | U20: 46.21925 | V20: 33.099998 | W20: 0.34 | Z20: 19.8 | AA20: 23.251751 | AB20: 22.1 | AC20: 0.34 | AF20: 20 | AG20: 34.73225 | AH20: 18.059999 | AI20: 0.34 | AL20: 20 | AM20: 121.657249 | AN20: 6.86 | AO20: 0.34 | AR20: 20 | AS20: 210.463745 | AT20: 4.5 | AU20: 0.34 | AX20: 21 | AY20: 36.300751 | AZ20: 16.84 | BA20: 0.34 | BD20: 20 | BE20: 34.722752 | BF20: 32.919998 | BG20: 0.339996
B21: 19.5 | C21: 42.711 | D21: 10.26 | E21: 0.36 | H21: 21.7 | I21: 34.244999 | J21: 15.28 | K21: 0.36 | N21: 22 | O21: 14.7005 | P21: 11.1 | Q21: 0.36 | T21: 19.3 | U21: 49.53075 | V21: 33.119999 | W21: 0.360001 | Z21: 19.8 | AA21: 25.0515 | AB21: 22.120001 | AC21: 0.360001 | AF21: 20 | AG21: 36.761002 | AH21: 18.08 | AI21: 0.360001 | AL21: 20 | AM21: 129.375504 | AN21: 6.88 | AO21: 0.36 | AR21: 20 | AS21: 222.983749 | AT21: 4.52 | AU21: 0.36 | AX21: 21 | AY21: 38.564251 | AZ21: 16.860001 | BA21: 0.360001 | BD21: 20 | BE21: 37.309502 | BF21: 32.939999 | BG21: 0.359997
B22: 19.5 | C22: 44.97 | D22: 10.28 | E22: 0.38 | H22: 21.7 | I22: 36.077751 | J22: 15.3 | K22: 0.38 | N22: 22 | O22: 15.2615 | P22: 11.12 | Q22: 0.38 | T22: 19.3 | U22: 52.395 | V22: 33.139999 | W22: 0.380001 | Z22: 19.8 | AA22: 26.853001 | AB22: 22.139999 | AC22: 0.379999 | AF22: 20 | AG22: 39.233501 | AH22: 18.1 | AI22: 0.380001 | AL22: 20 | AM22: 137.008499 | AN22: 6.9 | AO22: 0.38 | AR22: 20 | AS22: 235.350754 | AT22: 4.54 | AU22: 0.38 | AX22: 21 | AY22: 40.699749 | AZ22: 16.879999 | BA22: 0.379999 | BD22: 20 | BE22: 40.356251 | BF22: 32.959999 | BG22: 0.379997
B23: 19.5 | C23: 47.159 | D23: 10.3 | E23: 0.4 | H23: 21.7 | I23: 37.963501 | J23: 15.32 | K23: 0.4 | N23: 22 | O23: 15.8425 | P23: 11.14 | Q23: 0.4 | T23: 19.3 | U23: 55.498249 | V23: 33.16 | W23: 0.400002 | Z23: 19.8 | AA23: 28.585751 | AB23: 22.16 | AC23: 0.4 | AF23: 20 | AG23: 41.47525 | AH23: 18.120001 | AI23: 0.400002 | AL23: 20 | AM23: 144.660995 | AN23: 6.92 | AO23: 0.4 | AR23: 20 | AS23: 247.417252 | AT23: 4.56 | AU23: 0.4 | AX23: 21 | AY23: 43.025002 | AZ23: 16.9 | BA23: 0.4 | BD23: 20 | BE23: 43.258999 | BF23: 32.98 | BG23: 0.399998
B24: 19.5 | C24: 49.577 | D24: 10.32 | E24: 0.42 | H24: 21.7 | I24: 39.455002 | J24: 15.34 | K24: 0.42 | N24: 22 | O24: 16.414749 | P24: 11.16 | Q24: 0.42 | T24: 19.3 | U24: 58.095501 | V24: 33.18 | W24: 0.420002 | Z24: 19.8 | AA24: 30.44025 | AB24: 22.18 | AC24: 0.42 | AF24: 20 | AG24: 44.025002 | AH24: 18.139999 | AI24: 0.42 | AL24: 20 | AM24: 151.713745 | AN24: 6.94 | AO24: 0.42 | AR24: 20 | AS24: 259.541504 | AT24: 4.58 | AU24: 0.42 | AX24: 21 | AY24: 44.987499 | AZ24: 16.92 | BA24: 0.42 | BD24: 20 | BE24: 46.279999 | BF24: 33 | BG24: 0.419998
B25: 19.5 | C25: 51.823 | D25: 10.34 | E25: 0.44 | H25: 21.7 | I25: 41.3745 | J25: 15.36 | K25: 0.44 | N25: 22 | O25: 17.136499 | P25: 11.18 | Q25: 0.44 | T25: 19.3 | U25: 61.066002 | V25: 33.200001 | W25: 0.440003 | Z25: 19.8 | AA25: 31.92075 | AB25: 22.200001 | AC25: 0.440001 | AF25: 20 | AG25: 46.24625 | AH25: 18.16 | AI25: 0.440001 | AL25: 20 | AM25: 159.303757 | AN25: 6.96 | AO25: 0.44 | AR25: 20 | AS25: 271.59375 | AT25: 4.6 | AU25: 0.44 | AX25: 21 | AY25: 47.301498 | AZ25: 16.940001 | BA25: 0.440001 | BD25: 20 | BE25: 49.254749 | BF25: 33.02 | BG25: 0.439998
B26: 19.5 | C26: 54.331 | D26: 10.36 | E26: 0.46 | H26: 21.7 | I26: 43.12225 | J26: 15.38 | K26: 0.46 | N26: 22 | O26: 17.7635 | P26: 11.2 | Q26: 0.46 | T26: 19.3 | U26: 63.80825 | V26: 33.220001 | W26: 0.460003 | Z26: 19.8 | AA26: 33.692749 | AB26: 22.219999 | AC26: 0.459999 | AF26: 20 | AG26: 48.186749 | AH26: 18.18 | AI26: 0.460001 | AL26: 20 | AM26: 166.894257 | AN26: 6.98 | AO26: 0.46 | AR26: 20 | AS26: 283.504761 | AT26: 4.62 | AU26: 0.46 | AX26: 21 | AY26: 49.547501 | AZ26: 16.959999 | BA26: 0.459999 | BD26: 20 | BE26: 51.84425 | BF26: 33.040001 | BG26: 0.459999
B27: 19.5 | C27: 56.294 | D27: 10.38 | E27: 0.48 | H27: 21.7 | I27: 44.935001 | J27: 15.4 | K27: 0.48 | N27: 22 | O27: 18.493999 | P27: 11.22 | Q27: 0.48 | T27: 19.3 | U27: 66.236 | V27: 33.240002 | W27: 0.480004 | Z27: 19.8 | AA27: 35.41925 | AB27: 22.24 | AC27: 0.48 | AF27: 20 | AG27: 50.699501 | AH27: 18.200001 | AI27: 0.480002 | AL27: 20 | AM27: 174.624252 | AN27: 7 | AO27: 0.48 | AR27: 20 | AS27: 295.326263 | AT27: 4.64 | AU27: 0.48 | AX27: 21 | AY27: 51.691502 | AZ27: 16.98 | BA27: 0.48 | BD27: 20 | BE27: 55.01075 | BF27: 33.060001 | BG27: 0.479999
B28: 19.5 | C28: 58.571 | D28: 10.4 | E28: 0.5 | H28: 21.7 | I28: 46.797249 | J28: 15.42 | K28: 0.5 | N28: 22 | O28: 19.19375 | P28: 11.24 | Q28: 0.5 | T28: 19.3 | U28: 68.865753 | V28: 33.259998 | W28: 0.5 | Z28: 19.8 | AA28: 37.050499 | AB28: 22.26 | AC28: 0.5 | AF28: 20 | AG28: 52.814499 | AH28: 18.219999 | AI28: 0.5 | AL28: 20 | AM28: 182.529999 | AN28: 7.02 | AO28: 0.5 | AR28: 20 | AS28: 306.856995 | AT28: 4.66 | AU28: 0.5 | AX28: 21 | AY28: 53.789001 | AZ28: 17 | BA28: 0.5 | BD28: 20 | BE28: 57.834751 | BF28: 33.080002 | BG28: 0.5
B29: 19.5 | C29: 60.922 | D29: 10.42 | E29: 0.52 | H29: 21.7 | I29: 48.321751 | J29: 15.44 | K29: 0.52 | N29: 22 | O29: 19.782 | P29: 11.26 | Q29: 0.52 | T29: 19.3 | U29: 71.166 | V29: 33.279999 | W29: 0.520001 | Z29: 19.8 | AA29: 38.774502 | AB29: 22.280001 | AC29: 0.520001 | AF29: 20 | AG29: 55.2575 | AH29: 18.24 | AI29: 0.520001 | AL29: 20 | AM29: 190.385254 | AN29: 7.04 | AO29: 0.52 | AR29: 20 | AS29: 318.274506 | AT29: 4.68 | AU29: 0.52 | AX29: 21 | AY29: 55.310249 | AZ29: 17.02 | BA29: 0.52 | BD29: 20 | BE29: 60.922249 | BF29: 33.099998 | BG29: 0.519996
B30: 19.5 | C30: 63.139 | D30: 10.44 | E30: 0.54 | H30: 21.7 | I30: 50.179501 | J30: 15.46 | K30: 0.54 | N30: 22 | O30: 20.531 | P30: 11.28 | Q30: 0.54 | T30: 19.3 | U30: 74.008247 | V30: 33.299999 | W30: 0.540001 | Z30: 19.8 | AA30: 40.184502 | AB30: 22.299999 | AC30: 0.539999 | AF30: 20 | AG30: 57.536999 | AH30: 18.26 | AI30: 0.540001 | AL30: 20 | AM30: 198.403748 | AN30: 7.06 | AO30: 0.54 | AR30: 20 | AS30: 329.697998 | AT30: 4.7 | AU30: 0.54 | AX30: 21 | AY30: 57.32225 | AZ30: 17.040001 | BA30: 0.540001 | BD30: 20 | BE30: 63.839748 | BF30: 33.119999 | BG30: 0.539997
B31: 19.5 | C31: 65.574 | D31: 10.46 | E31: 0.56 | H31: 21.7 | I31: 51.960499 | J31: 15.48 | K31: 0.56 | N31: 22 | O31: 21.145 | P31: 11.3 | Q31: 0.56 | T31: 19.3 | U31: 76.461998 | V31: 33.32 | W31: 0.560002 | Z31: 19.8 | AA31: 41.932751 | AB31: 22.32 | AC31: 0.56 | AF31: 20 | AG31: 59.654751 | AH31: 18.280001 | AI31: 0.560002 | AL31: 20 | AM31: 206.281006 | AN31: 7.08 | AO31: 0.56 | AR31: 20 | AS31: 340.95401 | AT31: 4.72 | AU31: 0.56 | AX31: 21 | AY31: 59.19125 | AZ31: 17.059999 | BA31: 0.559999 | BD31: 20 | BE31: 66.476501 | BF31: 33.139999 | BG31: 0.559997
B32: 19.5 | C32: 67.485 | D32: 10.48 | E32: 0.58 | H32: 21.7 | I32: 53.839001 | J32: 15.5 | K32: 0.58 | N32: 22 | O32: 21.914 | P32: 11.32 | Q32: 0.58 | T32: 19.3 | U32: 78.755501 | V32: 33.34 | W32: 0.580002 | Z32: 19.8 | AA32: 43.626251 | AB32: 22.34 | AC32: 0.58 | AF32: 20 | AG32: 62.118999 | AH32: 18.299999 | AI32: 0.58 | AL32: 20 | AM32: 214.062744 | AN32: 7.1 | AO32: 0.58 | AR32: 20 | AS32: 351.947754 | AT32: 4.74 | AU32: 0.58 | AX32: 21 | AY32: 60.984501 | AZ32: 17.08 | BA32: 0.58 | BD32: 20 | BE32: 69.568748 | BF32: 33.16 | BG32: 0.579998
B33: 19.5 | C33: 69.849 | D33: 10.5 | E33: 0.6 | H33: 21.8 | I33: 55.65625 | J33: 15.52 | K33: 0.6 | N33: 22 | O33: 22.61125 | P33: 11.34 | Q33: 0.6 | T33: 19.3 | U33: 81.167999 | V33: 33.360001 | W33: 0.600003 | Z33: 19.8 | AA33: 45.311249 | AB33: 22.360001 | AC33: 0.600001 | AF33: 20 | AG33: 64.335999 | AH33: 18.32 | AI33: 0.600001 | AL33: 20 | AM33: 221.822495 | AN33: 7.12 | AO33: 0.6 | AR33: 20 | AS33: 362.842987 | AT33: 4.76 | AU33: 0.6 | AX33: 21 | AY33: 62.636749 | AZ33: 17.1 | BA33: 0.6 | BD33: 20 | BE33: 72.2435 | BF33: 33.18 | BG33: 0.599998
B34: 19.5 | C34: 72.215 | D34: 10.52 | E34: 0.62 | H34: 21.8 | I34: 57.198502 | J34: 15.54 | K34: 0.62 | N34: 22 | O34: 23.25075 | P34: 11.36 | Q34: 0.62 | T34: 19.3 | U34: 83.353996 | V34: 33.380001 | W34: 0.620003 | Z34: 19.9 | AA34: 47.031502 | AB34: 22.379999 | AC34: 0.619999 | AF34: 20 | AG34: 66.862747 | AH34: 18.34 | AI34: 0.620001 | AL34: 20 | AM34: 229.501251 | AN34: 7.14 | AO34: 0.62 | AR34: 20 | AS34: 373.577515 | AT34: 4.78 | AU34: 0.62 | AX34: 21 | AY34: 63.806751 | AZ34: 17.120001 | BA34: 0.620001 | BD34: 20.1 | BE34: 75.238503 | BF34: 33.200001 | BG34: 0.619999
B35: 19.5 | C35: 74.533 | D35: 10.54 | E35: 0.64 | H35: 21.8 | I35: 59.12825 | J35: 15.56 | K35: 0.64 | N35: 22 | O35: 24.021749 | P35: 11.38 | Q35: 0.64 | T35: 19.4 | U35: 86.117249 | V35: 33.400002 | W35: 0.640004 | Z35: 19.9 | AA35: 48.470749 | AB35: 22.4 | AC35: 0.64 | AF35: 20 | AG35: 69.139 | AH35: 18.360001 | AI35: 0.640002 | AL35: 20 | AM35: 237.512756 | AN35: 7.16 | AO35: 0.64 | AR35: 20 | AS35: 384.0625 | AT35: 4.8 | AU35: =SUM(AT35,-4.16) -> 0.64 | AX35: 21 | AY35: 65.422997 | AZ35: 17.139999 | BA35: 0.639999 | BD35: 20.1 | BE35: 77.905998 | BF35: 33.220001 | BG35: 0.639999
B36: 19.5 | C36: 76.915 | D36: 10.56 | E36: 0.66 | H36: 21.8 | I36: 60.818501 | J36: 15.58 | K36: 0.66 | N36: 22 | O36: 24.711 | P36: 11.4 | Q36: 0.66 | T36: 19.4 | U36: 88.435249 | V36: 33.419998 | W36: 0.66 | Z36: 19.9 | AA36: 50.223251 | AB36: 22.42 | AC36: 0.66 | AF36: 20 | AG36: 71.379501 | AH36: 18.379999 | AI36: 0.66 | AL36: 20 | AM36: 245.423996 | AN36: 7.18 | AO36: 0.66 | AR36: 20 | AS36: 394.468262 | AT36: 4.82 | AU36: 0.66 | AX36: 21 | AY36: 66.695251 | AZ36: 17.16 | BA36: 0.66 | BD36: 20.1 | BE36: 80.457748 | BF36: 33.240002 | BG36: 0.66
B37: 19.6 | C37: 78.866 | D37: 10.58 | E37: 0.68 | H37: 21.8 | I37: 62.73175 | J37: 15.6 | K37: 0.68 | N37: 22 | O37: 25.49325 | P37: 11.42 | Q37: 0.68 | T37: 19.4 | U37: 90.689003 | V37: 33.439999 | W37: 0.680001 | Z37: 19.9 | AA37: 51.827999 | AB37: 22.440001 | AC37: 0.680001 | AF37: 20 | AG37: 73.961502 | AH37: 18.4 | AI37: 0.680001 | AL37: 20 | AM37: 253.243256 | AN37: 7.2 | AO37: 0.68 | AR37: 20 | AS37: 404.822998 | AT37: 4.84 | AU37: 0.68 | AX37: 21 | AY37: 67.970749 | AZ37: 17.18 | BA37: 0.68 | BD37: 20.1 | BE37: 83.416 | BF37: 33.259998 | BG37: 0.679996
B38: 19.6 | C38: 81.276 | D38: 10.6 | E38: 0.7 | H38: 21.8 | I38: 64.385498 | J38: 15.62 | K38: 0.7 | N38: 22.1 | O38: 26.1665 | P38: 11.44 | Q38: 0.7 | T38: 19.4 | U38: 93.181747 | V38: 33.459999 | W38: 0.700001 | Z38: 19.9 | AA38: 53.568249 | AB38: 22.459999 | AC38: 0.699999 | AF38: 20 | AG38: 76.15625 | AH38: 18.42 | AI38: 0.700001 | AL38: 20 | AM38: 261.199493 | AN38: 7.22 | AO38: 0.7 | AR38: 20 | AS38: 415.078003 | AT38: 4.86 | AU38: 0.7 | AX38: 21 | AY38: 68.883003 | AZ38: 17.200001 | BA38: 0.700001 | BD38: 20.1 | BE38: 85.873001 | BF38: 33.279999 | BG38: 0.699997
B39: 19.6 | C39: 83.51 | D39: 10.62 | E39: 0.72 | H39: 21.8 | I39: 65.909248 | J39: 15.64 | K39: 0.72 | N39: 22.1 | O39: 26.863501 | P39: 11.46 | Q39: 0.72 | T39: 19.4 | U39: 95.405746 | V39: 33.48 | W39: 0.720002 | Z39: 19.9 | AA39: 55.283001 | AB39: 22.48 | AC39: 0.72 | AF39: 20 | AG39: 78.849747 | AH39: 18.440001 | AI39: 0.720002 | AL39: 20 | AM39: 269.018005 | AN39: 7.24 | AO39: 0.72 | AR39: 20 | AS39: 425.183258 | AT39: 4.88 | AU39: 0.72 | AX39: 21 | AY39: 68.949501 | AZ39: 17.219999 | BA39: 0.719999 | BD39: 20.1 | BE39: 88.706001 | BF39: 33.299999 | BG39: 0.719997
B40: 19.6 | C40: 85.97 | D40: 10.64 | E40: 0.74 | H40: 21.8 | I40: 67.782997 | J40: 15.66 | K40: 0.74 | N40: 22.1 | O40: 27.671249 | P40: 11.48 | Q40: 0.74 | T40: 19.4 | U40: 98.1035 | V40: 33.5 | W40: 0.740002 | Z40: 19.9 | AA40: 56.724251 | AB40: 22.5 | AC40: 0.74 | AF40: 20 | AG40: 81.109497 | AH40: 18.459999 | AI40: 0.74 | AL40: 20 | AM40: 276.815247 | AN40: 7.26 | AO40: 0.74 | AR40: 20 | AS40: 435.264252 | AT40: 4.9 | AU40: 0.74 | AX40: 21 | AY40: 68.334503 | AZ40: 17.24 | BA40: 0.74 | BD40: 20.1 | BE40: 91.178253 | BF40: 33.32 | BG40: 0.739998
B41: 19.6 | C41: 88.317 | D41: 10.66 | E41: 0.76 | H41: 21.8 | I41: 69.480751 | J41: 15.68 | K41: 0.76 | N41: 22.1 | O41: 28.380501 | P41: 11.5 | Q41: 0.76 | T41: 19.4 | U41: 100.338997 | V41: 33.52 | W41: 0.760002 | Z41: 19.9 | AA41: 58.3125 | AB41: 22.52 | AC41: 0.76 | AF41: 20 | AG41: 83.503754 | AH41: 18.48 | AI41: 0.760001 | AL41: 20 | AM41: 284.359253 | AN41: 7.28 | AO41: 0.76 | AR41: 20 | AS41: 445.182495 | AT41: 4.92 | AU41: 0.76 | AX41: 21.1 | AY41: 67.653252 | AZ41: 17.26 | BA41: 0.76 | BD41: 20.1 | BE41: 93.4245 | BF41: 33.34 | BG41: 0.759998
B42: 19.6 | C42: 90.233 | D42: 10.68 | E42: 0.78 | H42: 21.8 | I42: 71.398499 | J42: 15.7 | K42: 0.78 | N42: 22.1 | O42: 29.2125 | P42: 11.52 | Q42: 0.78 | T42: 19.4 | U42: 102.74675 | V42: 33.540001 | W42: 0.780003 | Z42: 19.9 | AA42: 59.889751 | AB42: 22.540001 | AC42: 0.780001 | AF42: 20 | AG42: 85.934502 | AH42: 18.5 | AI42: 0.780001 | AL42: 20 | AM42: 291.603485 | AN42: 7.3 | AO42: 0.78 | AR42: 20 | AS42: 454.868011 | AT42: 4.94 | AU42: 0.78 | AX42: 21.1 | AY42: 68.0765 | AZ42: 17.280001 | BA42: 0.780001 | BD42: 20.1 | BE42: 95.928001 | BF42: 33.360001 | BG42: 0.779999
B43: 19.6 | C43: 92.716 | D43: 10.7 | E43: 0.8 | H43: 21.8 | I43: 73.0895 | J43: 15.72 | K43: 0.8 | N43: 22.1 | O43: 29.80275 | P43: 11.54 | Q43: 0.8 | T43: 19.4 | U43: 105.100502 | V43: 33.560001 | W43: 0.800003 | Z43: 19.9 | AA43: 61.664249 | AB43: 22.559999 | AC43: 0.799999 | AF43: 20 | AG43: 88.17775 | AH43: 18.52 | AI43: 0.800001 | AL43: 20 | AM43: 299.144012 | AN43: 7.32 | AO43: 0.8 | AR43: 20 | AS43: 464.398743 | AT43: 4.96 | AU43: 0.8 | AX43: 21.1 | AY43: 68.47525 | AZ43: 17.299999 | BA43: 0.799999 | BD43: 20.1 | BE43: 98.171501 | BF43: 33.380001 | BG43: 0.799999
B44: 19.6 | C44: 94.918 | D44: 10.72 | E44: 0.82 | H44: 21.8 | I44: 74.757751 | J44: 15.74 | K44: 0.82 | N44: 22.1 | O44: 30.622499 | P44: 11.56 | Q44: 0.82 | T44: 19.4 | U44: 107.157997 | V44: 33.580002 | W44: 0.820004 | Z44: 19.9 | AA44: 63.306499 | AB44: 22.58 | AC44: 0.82 | AF44: 20 | AG44: 90.756752 | AH44: 18.540001 | AI44: 0.820002 | AL44: 20 | AM44: 306.63974 | AN44: 7.34 | AO44: 0.82 | AR44: 20 | AS44: 473.722504 | AT44: 4.98 | AU44: 0.82 | AX44: 21.1 | AY44: 68.919998 | AZ44: 17.32 | BA44: 0.82 | BD44: 20.1 | BE44: 100.733002 | BF44: 33.400002 | BG44: 0.82
B45: 19.6 | C45: 97.318 | D45: 10.74 | E45: 0.84 | H45: 21.8 | I45: 76.666748 | J45: 15.76 | K45: 0.84 | N45: 22.1 | O45: 31.5 | P45: 11.58 | Q45: 0.84 | T45: 19.4 | U45: 109.404999 | V45: 33.599998 | W45: 0.84 | Z45: 19.9 | AA45: 64.705498 | AB45: 22.6 | AC45: 0.84 | AF45: 20 | AG45: 92.93425 | AH45: 18.559999 | AI45: 0.84 | AL45: 20 | AM45: 314.019257 | AN45: 7.36 | AO45: 0.84 | AR45: 20 | AS45: 483.065491 | AT45: 5 | AU45: 0.84 | AX45: 21.1 | AY45: 70.078247 | AZ45: 17.34 | BA45: 0.84 | BD45: 20.1 | BE45: 102.898003 | BF45: 33.419998 | BG45: 0.839996
B46: 19.6 | C46: 99.626 | D46: 10.76 | E46: 0.86 | H46: 21.8 | I46: 78.337502 | J46: 15.78 | K46: 0.86 | N46: 22.1 | O46: 32.25975 | P46: 11.6 | Q46: 0.86 | T46: 19.4 | U46: 111.047249 | V46: 33.619999 | W46: 0.860001 | Z46: 19.9 | AA46: 66.512001 | AB46: 22.620001 | AC46: 0.860001 | AF46: 20 | AG46: 95.375748 | AH46: 18.58 | AI46: 0.860001 | AL46: 20 | AM46: 321.635498 | AN46: 7.38 | AO46: 0.86 | AR46: 20 | AS46: 492.14801 | AT46: 5.02 | AU46: 0.86 | AX46: 21.1 | AY46: 71.105003 | AZ46: 17.360001 | BA46: 0.860001 | BD46: 20.1 | BE46: 105.079247 | BF46: 33.439999 | BG46: 0.859997
B47: 19.6 | C47: 101.523 | D47: 10.78 | E47: 0.88 | H47: 21.8 | I47: 80.255753 | J47: 15.8 | K47: 0.88 | N47: 22.1 | O47: 33.10125 | P47: 11.62 | Q47: 0.88 | T47: 19.4 | U47: 113.083252 | V47: 33.639999 | W47: 0.880001 | Z47: 19.9 | AA47: 68.079247 | AB47: 22.639999 | AC47: 0.879999 | AF47: 20 | AG47: 97.720253 | AH47: 18.6 | AI47: 0.880001 | AL47: 20 | AM47: 329.001251 | AN47: 7.4 | AO47: 0.88 | AR47: 20 | AS47: 501.026489 | AT47: 5.04 | AU47: 0.88 | AX47: 21.1 | AY47: 72.273247 | AZ47: 17.379999 | BA47: 0.879999 | BD47: 20.1 | BE47: 107.596252 | BF47: 33.459999 | BG47: 0.879997
B48: 19.6 | C48: 103.995 | D48: 10.8 | E48: 0.9 | H48: 21.8 | I48: 81.897003 | J48: 15.82 | K48: 0.9 | N48: 22.1 | O48: 33.8125 | P48: 11.64 | Q48: 0.9 | T48: 19.4 | U48: 115.035751 | V48: 33.66 | W48: 0.900002 | Z48: 19.9 | AA48: 69.912498 | AB48: 22.66 | AC48: 0.9 | AF48: 20 | AG48: 100.18325 | AH48: 18.620001 | AI48: 0.900002 | AL48: 20 | AM48: 336.368988 | AN48: 7.42 | AO48: 0.9 | AR48: 20 | AS48: 509.5495 | AT48: 5.06 | AU48: 0.9 | AX48: 21.1 | AY48: 73.041496 | AZ48: 17.4 | BA48: 0.9 | BD48: 20.1 | BE48: 109.691254 | BF48: 33.48 | BG48: 0.899998
B49: 19.6 | C49: 106.125 | D49: 10.82 | E49: 0.92 | H49: 21.8 | I49: 83.284248 | J49: 15.84 | K49: 0.92 | N49: 22.1 | O49: 34.657749 | P49: 11.66 | Q49: 0.92 | T49: 19.4 | U49: 116.998749 | V49: 33.68 | W49: 0.920002 | Z49: 19.9 | AA49: 71.583252 | AB49: 22.68 | AC49: 0.92 | AF49: 20 | AG49: 102.982246 | AH49: 18.639999 | AI49: 0.92 | AL49: 20 | AM49: 343.818237 | AN49: 7.44 | AO49: 0.92 | AR49: 20 | AS49: 518.020264 | AT49: 5.08 | AU49: 0.92 | AX49: 21.1 | AY49: 73.640999 | AZ49: 17.42 | BA49: 0.92 | BD49: 20.1 | BE49: 112.081253 | BF49: 33.5 | BG49: 0.919998
B50: 19.6 | C50: 108.53 | D50: 10.84 | E50: 0.94 | H50: 21.8 | I50: 85.129997 | J50: 15.86 | K50: 0.94 | N50: 22.1 | O50: 35.527748 | P50: 11.68 | Q50: 0.94 | T50: 19.4 | U50: 119.287003 | V50: 33.700001 | W50: 0.940003 | Z50: 19.9 | AA50: 73.079002 | AB50: 22.700001 | AC50: 0.940001 | AF50: 20 | AG50: 105.16925 | AH50: 18.66 | AI50: 0.940001 | AL50: 20 | AM50: 350.926758 | AN50: 7.46 | AO50: 0.94 | AR50: 20 | AS50: 526.173523 | AT50: 5.1 | AU50: 0.94 | AX50: 21.1 | AY50: 74.177498 | AZ50: 17.440001 | BA50: 0.940001 | BD50: 20.1 | BE50: 114.014999 | BF50: 33.52 | BG50: 0.939998
B51: 19.6 | C51: 110.783 | D51: 10.86 | E51: 0.96 | H51: 21.8 | I51: 86.858498 | J51: 15.88 | K51: 0.96 | N51: 22.1 | O51: 36.32925 | P51: 11.7 | Q51: 0.96 | T51: 19.4 | U51: 121.061501 | V51: 33.720001 | W51: 0.960003 | Z51: 19.9 | AA51: 74.864502 | AB51: 22.719999 | AC51: 0.959999 | AF51: 20 | AG51: 107.756752 | AH51: 18.68 | AI51: 0.960001 | AL51: 20 | AM51: 358.059265 | AN51: 7.48 | AO51: 0.96 | AR51: 20 | AS51: 534.16449 | AT51: 5.12 | AU51: 0.96 | AX51: 21.1 | AY51: 74.253998 | AZ51: 17.459999 | BA51: 0.959999 | BD51: 20.1 | BE51: 116.171501 | BF51: 33.540001 | BG51: 0.959999
B52: 19.6 | C52: 112.798 | D52: 10.88 | E52: 0.98 | H52: 21.8 | I52: 88.7845 | J52: 15.9 | K52: 0.98 | N52: 22.1 | O52: 37.182251 | P52: 11.72 | Q52: 0.98 | T52: 19.4 | U52: 123.421249 | V52: 33.740002 | W52: 0.980004 | Z52: 19.9 | AA52: 76.392754 | AB52: 22.74 | AC52: 0.98 | AF52: 20 | AG52: 110.22625 | AH52: 18.700001 | AI52: 0.980002 | AL52: 20 | AM52: 365.245239 | AN52: 7.5 | AO52: 0.98 | AR52: 20 | AS52: 541.862488 | AT52: 5.14 | AU52: 0.98 | AX52: 21.1 | AY52: 74.283501 | AZ52: 17.48 | BA52: 0.98 | BD52: 20.1 | BE52: 118.516998 | BF52: 33.560001 | BG52: 0.979999
B53: 19.6 | C53: 115.231 | D53: 10.9 | E53: 1 | H53: 21.8 | I53: 90.383499 | J53: 15.92 | K53: 1 | N53: 22.1 | O53: 37.88525 | P53: 11.74 | Q53: 1 | T53: 19.4 | U53: 125.734497 | V53: 33.759998 | W53: 1 | Z53: 19.9 | AA53: 78.337753 | AB53: 22.76 | AC53: 1 | AF53: 20 | AG53: 112.72625 | AH53: 18.719999 | AI53: 1 | AL53: 20 | AM53: 372.353241 | AN53: 7.52 | AO53: 1 | AR53: 20 | AS53: 549.263 | AT53: 5.16 | AU53: 1 | AX53: 21.1 | AY53: 73.710999 | AZ53: 17.5 | BA53: 1 | BD53: 20.1 | BE53: 120.480003 | BF53: 33.580002 | BG53: 1
B54: 19.6 | C54: 117.296 | D54: 10.92 | E54: 1.02 | H54: 21.8 | I54: 92.210503 | J54: 15.94 | K54: 1.02 | N54: 22.1 | O54: 38.777748 | P54: 11.76 | Q54: 1.02 | T54: 19.4 | U54: 128.178253 | V54: 33.779999 | W54: 1.020001 | Z54: 19.9 | AA54: 79.934753 | AB54: 22.780001 | AC54: 1.020001 | AF54: 20 | AG54: 115.352501 | AH54: 18.74 | AI54: 1.020001 | AL54: 20 | AM54: 379.416992 | AN54: 7.54 | AO54: 1.02 | AR54: 20 | AS54: 556.465759 | AT54: 5.18 | AU54: 1.02 | AX54: 21.1 | AY54: 72.926247 | AZ54: 17.52 | BA54: 1.02 | BD54: 20.1 | BE54: 122.748001 | BF54: 33.599998 | BG54: 1.019996
B55: 19.6 | C55: 119.793 | D55: 10.94 | E55: 1.04 | H55: 21.8 | I55: 94.094002 | J55: 15.96 | K55: 1.04 | N55: 22.1 | O55: 39.698002 | P55: 11.78 | Q55: 1.04 | T55: 19.4 | U55: 130.994751 | V55: 33.799999 | W55: 1.040001 | Z55: 19.9 | AA55: 81.5 | AB55: 22.799999 | AC55: 1.039999 | AF55: 20 | AG55: 117.516747 | AH55: 18.76 | AI55: 1.040001 | AL55: 20 | AM55: 386.363495 | AN55: 7.56 | AO55: 1.04 | AR55: 20 | AS55: 563.296265 | AT55: 5.2 | AU55: 1.04 | AX55: 21.1 | AY55: 73.649498 | AZ55: 17.540001 | BA55: 1.040001 | BD55: 20.1 | BE55: 124.388496 | BF55: 33.619999 | BG55: 1.039997
B56: 19.6 | C56: 121.999 | D56: 10.96 | E56: 1.06 | H56: 21.8 | I56: 95.803497 | J56: 15.98 | K56: 1.06 | N56: 22.1 | O56: 40.488499 | P56: 11.8 | Q56: 1.06 | T56: 19.4 | U56: 133.210999 | V56: 33.82 | W56: 1.060002 | Z56: 19.9 | AA56: 83.37175 | AB56: 22.82 | AC56: 1.06 | AF56: 20 | AG56: 120.136497 | AH56: 18.780001 | AI56: 1.060002 | AL56: 20 | AM56: 393.36026 | AN56: 7.58 | AO56: 1.06 | AR56: 20 | AS56: 569.794739 | AT56: 5.22 | AU56: 1.06 | AX56: 21.1 | AY56: 76.114754 | AZ56: 17.559999 | BA56: 1.059999 | BD56: 20.1 | BE56: 126.525497 | BF56: 33.639999 | BG56: 1.059997
B57: 19.6 | C57: 124.068 | D57: 10.98 | E57: 1.08 | H57: 21.9 | I57: 97.702499 | J57: 16 | K57: 1.08 | N57: 22.1 | O57: 41.341999 | P57: 11.82 | Q57: 1.08 | T57: 19.4 | U57: 135.930756 | V57: 33.84 | W57: 1.080002 | Z57: 19.9 | AA57: 84.971001 | AB57: 22.84 | AC57: 1.08 | AF57: 20.1 | AG57: 122.676003 | AH57: 18.799999 | AI57: 1.08 | AL57: 20 | AM57: 400.28299 | AN57: 7.6 | AO57: 1.08 | AR57: 20 | AS57: 575.87677 | AT57: 5.24 | AU57: 1.08 | AX57: 21.1 | AY57: 78.819 | AZ57: 17.58 | BA57: 1.08 | BD57: 20.1 | BE57: 128.750748 | BF57: 33.66 | BG57: 1.079998
B58: 19.6 | C58: 126.534 | D58: 11 | E58: 1.1 | H58: 21.9 | I58: 99.222748 | J58: 16.02 | K58: 1.1 | N58: 22.1 | O58: 42.05875 | P58: 11.84 | Q58: 1.1 | T58: 19.4 | U58: 138.409744 | V58: 33.860001 | W58: 1.100003 | Z58: 19.9 | AA58: 86.8965 | AB58: 22.860001 | AC58: 1.100001 | AF58: 20.1 | AG58: 125.134003 | AH58: 18.82 | AI58: 1.100001 | AL58: 20 | AM58: 407.033752 | AN58: 7.62 | AO58: 1.1 | AR58: 20 | AS58: 581.503479 | AT58: 5.26 | AU58: 1.1 | AX58: 21.1 | AY58: 81.205254 | AZ58: 17.6 | BA58: 1.1 | BD58: 20.1 | BE58: 130.811996 | BF58: 33.68 | BG58: 1.099998
B59: 19.6 | C59: 128.54 | D59: 11.02 | E59: 1.12 | H59: 21.9 | I59: 101.010246 | J59: 16.040001 | K59: 1.120001 | N59: 22.1 | O59: 42.976501 | P59: 11.86 | Q59: 1.12 | T59: 19.4 | U59: 141.255493 | V59: 33.880001 | W59: 1.120003 | Z59: 19.9 | AA59: 88.47525 | AB59: 22.879999 | AC59: 1.119999 | AF59: 20.1 | AG59: 127.754997 | AH59: 18.84 | AI59: 1.120001 | AL59: 20 | AM59: 413.796997 | AN59: 7.64 | AO59: 1.12 | AR59: 20 | AS59: 586.325745 | AT59: 5.28 | AU59: 1.12 | AX59: 21.1 | AY59: 83.612747 | AZ59: 17.620001 | BA59: 1.120001 | BD59: 20.1 | BE59: 132.881744 | BF59: 33.700001 | BG59: 1.119999
B60: 19.6 | C60: 130.942 | D60: 11.04 | E60: 1.14 | H60: 21.9 | I60: 102.791496 | J60: 16.059999 | K60: 1.139999 | N60: 22.1 | O60: 43.817501 | P60: 11.88 | Q60: 1.14 | T60: 19.4 | U60: 144.242249 | V60: 33.900002 | W60: 1.140004 | Z60: 19.9 | AA60: 90.179001 | AB60: 22.9 | AC60: 1.14 | AF60: 20.1 | AG60: 129.849243 | AH60: 18.860001 | AI60: 1.140002 | AL60: 20 | AM60: 420.387238 | AN60: 7.66 | AO60: 1.14 | AR60: 20 | AS60: 591.821228 | AT60: 5.3 | AU60: 1.14 | AX60: 21.1 | AY60: 86.30275 | AZ60: 17.639999 | BA60: 1.139999 | BD60: 20.1 | BE60: 134.474243 | BF60: 33.720001 | BG60: 1.139999
B61: 19.6 | C61: 133.026 | D61: 11.06 | E61: 1.16 | H61: 21.9 | I61: 104.505753 | J61: 16.08 | K61: 1.16 | N61: 22.1 | O61: 44.7355 | P61: 11.9 | Q61: 1.16 | T61: 19.4 | U61: 146.592255 | V61: 33.919998 | W61: 1.16 | Z61: 19.9 | AA61: 92.011749 | AB61: 22.92 | AC61: 1.16 | AF61: 20.1 | AG61: 132.386505 | AH61: 18.879999 | AI61: 1.16 | AL61: 20 | AM61: 427.105255 | AN61: 7.68 | AO61: 1.16 | AR61: 20 | AS61: 598.043518 | AT61: 5.32 | AU61: 1.16 | AX61: 21.1 | AY61: 88.7845 | AZ61: 17.66 | BA61: 1.16 | BD61: 20.1 | BE61: 136.820251 | BF61: 33.740002 | BG61: 1.16
B62: 19.6 | C62: 135.175 | D62: 11.08 | E62: 1.18 | H62: 21.9 | I62: 106.311996 | J62: 16.1 | K62: 1.18 | N62: 22.1 | O62: 45.58625 | P62: 11.92 | Q62: 1.18 | T62: 19.4 | U62: 149.420746 | V62: 33.939999 | W62: 1.180001 | Z62: 19.9 | AA62: 93.616501 | AB62: 22.940001 | AC62: 1.180001 | AF62: 20.1 | AG62: 134.611755 | AH62: 18.9 | AI62: 1.180001 | AL62: 20 | AM62: 433.798004 | AN62: 7.7 | AO62: 1.18 | AR62: 20 | AS62: 603.806519 | AT62: 5.34 | AU62: 1.18 | AX62: 21.1 | AY62: 91.489998 | AZ62: 17.68 | BA62: 1.18 | BD62: 20.1 | BE62: 138.915756 | BF62: 33.759998 | BG62: 1.179996
B63: 19.6 | C63: 137.575 | D63: 11.1 | E63: 1.2 | H63: 21.9 | I63: 107.762253 | J63: 16.120001 | K63: 1.200001 | N63: 22.1 | O63: 46.286499 | P63: 11.94 | Q63: 1.2 | T63: 19.4 | U63: 151.945251 | V63: 33.959999 | W63: 1.200001 | Z63: 19.9 | AA63: 95.461746 | AB63: 22.959999 | AC63: 1.199999 | AF63: 20.1 | AG63: 137.119247 | AH63: 18.92 | AI63: 1.200001 | AL63: 20 | AM63: 440.288239 | AN63: 7.72 | AO63: 1.2 | AR63: 20 | AS63: 609.239014 | AT63: 5.36 | AU63: 1.2 | AX63: 21.1 | AY63: 93.730003 | AZ63: 17.700001 | BA63: 1.200001 | BD63: 20.1 | BE63: 140.907257 | BF63: 33.779999 | BG63: 1.199997
B64: 19.6 | C64: 139.561 | D64: 11.12 | E64: 1.22 | H64: 21.9 | I64: 109.555252 | J64: 16.139999 | K64: 1.219999 | N64: 22.1 | O64: 47.247749 | P64: 11.96 | Q64: 1.22 | T64: 19.4 | U64: 154.864502 | V64: 33.98 | W64: 1.220002 | Z64: 19.9 | AA64: 96.945503 | AB64: 22.98 | AC64: 1.22 | AF64: 20.1 | AG64: 139.593246 | AH64: 18.940001 | AI64: 1.220002 | AL64: 20 | AM64: 446.91275 | AN64: 7.74 | AO64: 1.22 | AR64: 20 | AS64: 614.440491 | AT64: 5.38 | AU64: 1.22 | AX64: 21.1 | AY64: 96.204247 | AZ64: 17.719999 | BA64: 1.219999 | BD64: 20.1 | BE64: 143.100006 | BF64: 33.799999 | BG64: 1.219997
B65: 19.6 | C65: 141.929 | D65: 11.14 | E65: 1.24 | H65: 21.9 | I65: 111.262001 | J65: 16.16 | K65: 1.24 | N65: 22.1 | O65: 48.0695 | P65: 11.98 | Q65: 1.24 | T65: 19.4 | U65: 157.756256 | V65: 34 | W65: 1.240002 | Z65: 19.9 | AA65: 98.630501 | AB65: 23 | AC65: 1.24 | AF65: 20.1 | AG65: 141.570007 | AH65: 18.959999 | AI65: 1.24 | AL65: 20 | AM65: 453.383759 | AN65: 7.76 | AO65: 1.24 | AR65: 20.1 | AS65: 619.451233 | AT65: 5.4 | AU65: 1.24 | AX65: 21.1 | AY65: 98.913254 | AZ65: 17.74 | BA65: 1.24 | BD65: 20.1 | BE65: 144.639999 | BF65: 33.82 | BG65: 1.239998
B66: 19.6 | C66: 143.979 | D66: 11.16 | E66: 1.26 | H66: 21.9 | I66: 112.977997 | J66: 16.18 | K66: 1.26 | N66: 22.1 | O66: 48.988499 | P66: 12 | Q66: 1.26 | T66: 19.4 | U66: 160.2155 | V66: 34.02 | W66: 1.260002 | Z66: 19.9 | AA66: 100.406754 | AB66: 23.02 | AC66: 1.26 | AF66: 20.1 | AG66: 144.084244 | AH66: 18.98 | AI66: 1.260001 | AL66: 20 | AM66: 459.737488 | AN66: 7.78 | AO66: 1.26 | AR66: 20.1 | AS66: 624.120239 | AT66: 5.42 | AU66: 1.26 | AX66: 21.1 | AY66: 101.438499 | AZ66: 17.76 | BA66: 1.26 | BD66: 20.1 | BE66: 146.984253 | BF66: 33.84 | BG66: 1.259998
B67: 19.6 | C67: 146.077 | D67: 11.18 | E67: =SUM(D67,-9.9) -> 1.28 | H67: 21.9 | I67: 114.787247 | J67: 16.200001 | K67: =SUM(J67,-14.92) -> 1.280001 | N67: 22.1 | O67: 49.844749 | P67: 12.02 | Q67: =SUM(P67,-10.74) -> 1.28 | T67: 19.4 | U67: 162.988754 | V67: 34.040001 | W67: =SUM(V67,-32.759998) -> 1.280003 | Z67: 19.9 | AA67: 102.003754 | AB67: 23.040001 | AC67: =SUM(AB67,-21.76) -> 1.280001 | AF67: 20.1 | AG67: 146.431 | AH67: 19 | AI67: =SUM(AH67,-17.719999) -> 1.280001 | AL67: 20 | AM67: 466.04599 | AN67: 7.8 | AO67: =SUM(AN67,-6.52) -> 1.28 | AR67: 20.1 | AS67: 628.545227 | AT67: 5.44 | AU67: =SUM(AT67,-4.16) -> 1.28 | AX67: 21.1 | AY67: 104.146751 | AZ67: 17.780001 | BA67: =SUM(AZ67,-16.5) -> 1.280001 | BD67: 20.1 | BE67: 148.953506 | BF67: 33.860001 | BG67: =SUM(BF67,-32.580002) -> 1.279999
B68: 19.6 | C68: 148.346 | D68: 11.2 | E68: 1.3 | H68: 21.9 | I68: 116.147751 | J68: 16.219999 | K68: 1.299999 | N68: 22.1 | O68: 50.60825 | P68: 12.04 | Q68: 1.3 | T68: 19.4 | U68: 165.330246 | V68: 34.060001 | W68: 1.300003 | Z68: 19.9 | AA68: 103.887001 | AB68: 23.059999 | AC68: 1.299999 | AF68: 20.1 | AG68: 148.906494 | AH68: 19.02 | AI68: 1.300001 | AL68: 20 | AM68: 472.070007 | AN68: 7.82 | AO68: 1.3 | AR68: 20.1 | AS68: 632.724487 | AT68: 5.46 | AU68: 1.3 | AX68: 21.1 | AY68: 106.333504 | AZ68: 17.799999 | BA68: 1.299999 | BD68: 20.1 | BE68: 151.061005 | BF68: 33.880001 | BG68: 1.299999
B69: 19.6 | C69: 150.407 | D69: 11.22 | E69: 1.32 | H69: 21.9 | I69: 117.949997 | J69: 16.24 | K69: 1.32 | N69: 22.1 | O69: 51.599251 | P69: 12.06 | Q69: 1.32 | T69: 19.4 | U69: 168.292496 | V69: 34.080002 | W69: 1.320004 | Z69: 19.9 | AA69: 105.244499 | AB69: 23.08 | AC69: 1.32 | AF69: 20.1 | AG69: 151.318497 | AH69: 19.040001 | AI69: 1.320002 | AL69: 20 | AM69: 478.208496 | AN69: 7.84 | AO69: 1.32 | AR69: 20.1 | AS69: 636.70697 | AT69: 5.48 | AU69: 1.32 | AX69: 21.1 | AY69: 108.915749 | AZ69: 17.82 | BA69: 1.32 | BD69: 20.1 | BE69: 153.231506 | BF69: 33.900002 | BG69: 1.32
B70: 19.6 | C70: 152.744 | D70: 11.24 | E70: 1.34 | H70: 21.9 | I70: 119.660248 | J70: 16.26 | K70: 1.34 | N70: 22.1 | O70: 52.367249 | P70: 12.08 | Q70: 1.34 | T70: 19.4 | U70: 171.048492 | V70: 34.099998 | W70: 1.34 | Z70: 19.9 | AA70: 107.035248 | AB70: 23.1 | AC70: 1.34 | AF70: 20.1 | AG70: 153.3535 | AH70: 19.059999 | AI70: 1.34 | AL70: 20 | AM70: 484.096985 | AN70: 7.86 | AO70: 1.34 | AR70: 20.1 | AS70: 640.476501 | AT70: 5.5 | AU70: 1.34 | AX70: 21.1 | AY70: 111.508499 | AZ70: 17.84 | BA70: 1.34 | BD70: 20.1 | BE70: 154.863251 | BF70: 33.919998 | BG70: 1.339996
B71: 19.6 | C71: 154.617 | D71: 11.26 | E71: 1.36 | H71: 21.9 | I71: 121.469254 | J71: 16.280001 | K71: 1.360001 | N71: 22.1 | O71: 53.332748 | P71: 12.1 | Q71: 1.36 | T71: 19.4 | U71: 173.456497 | V71: 34.119999 | W71: 1.360001 | Z71: 19.9 | AA71: 108.745499 | AB71: 23.120001 | AC71: 1.360001 | AF71: 20.1 | AG71: 155.960251 | AH71: 19.08 | AI71: 1.360001 | AL71: 20 | AM71: 490.000763 | AN71: 7.88 | AO71: 1.36 | AR71: 20.1 | AS71: 644.001221 | AT71: 5.52 | AU71: 1.36 | AX71: 21.1 | AY71: 114.072746 | AZ71: 17.860001 | BA71: 1.360001 | BD71: 20.1 | BE71: 157.216003 | BF71: 33.939999 | BG71: 1.359997
B72: 19.6 | C72: 156.764 | D72: 11.28 | E72: 1.38 | H72: 21.9 | I72: 123.178749 | J72: 16.299999 | K72: 1.379999 | N72: 22.1 | O72: 54.171001 | P72: 12.12 | Q72: 1.38 | T72: 19.4 | U72: 176.294998 | V72: 34.139999 | W72: 1.380001 | Z72: 19.9 | AA72: 110.37175 | AB72: 23.139999 | AC72: 1.379999 | AF72: 20.1 | AG72: 158.126495 | AH72: 19.1 | AI72: 1.380001 | AL72: 20 | AM72: 495.713989 | AN72: 7.9 | AO72: 1.38 | AR72: 20.1 | AS72: 647.157471 | AT72: 5.54 | AU72: 1.38 | AX72: 21.1 | AY72: 116.831001 | AZ72: 17.879999 | BA72: 1.379999 | BD72: 20.1 | BE72: 159.148743 | BF72: 33.959999 | BG72: 1.379997
B73: 19.6 | C73: 159.059 | D73: 11.3 | E73: 1.4 | H73: 21.9 | I73: 124.428497 | J73: 16.32 | K73: 1.4 | N73: 22.1 | O73: 54.969002 | P73: 12.14 | Q73: 1.4 | T73: 19.4 | U73: 178.70575 | V73: 34.16 | W73: 1.400002 | Z73: 19.9 | AA73: 112.186249 | AB73: 23.16 | AC73: 1.4 | AF73: 20.1 | AG73: 160.651245 | AH73: 19.120001 | AI73: 1.400002 | AL73: 20 | AM73: 501.165497 | AN73: 7.92 | AO73: 1.4 | AR73: 20.1 | AS73: 650.155762 | AT73: 5.56 | AU73: 1.4 | AX73: 21.1 | AY73: 118.988503 | AZ73: 17.9 | BA73: 1.4 | BD73: 20.1 | BE73: 161.264496 | BF73: 33.98 | BG73: 1.399998
B74: 19.6 | C74: 161.105 | D74: 11.32 | E74: 1.42 | H74: 21.9 | I74: 126.299004 | J74: 16.34 | K74: 1.42 | N74: 22.1 | O74: 55.974499 | P74: 12.16 | Q74: 1.42 | T74: 19.4 | U74: 181.653 | V74: 34.18 | W74: 1.420002 | Z74: 19.9 | AA74: 113.541 | AB74: 23.18 | AC74: 1.42 | AF74: 20.1 | AG74: 162.849243 | AH74: 19.139999 | AI74: 1.42 | AL74: 20 | AM74: 506.791992 | AN74: 7.94 | AO74: 1.42 | AR74: 20.1 | AS74: 652.984985 | AT74: 5.58 | AU74: 1.42 | AX74: 21.1 | AY74: 121.654503 | AZ74: 17.92 | BA74: 1.42 | BD74: 20.1 | BE74: 163.28125 | BF74: 34 | BG74: 1.419998
B75: 19.6 | C75: 163.416 | D75: 11.34 | E75: 1.44 | H75: 21.9 | I75: 127.994003 | J75: 16.360001 | K75: 1.440001 | N75: 22.1 | O75: 56.83625 | P75: 12.18 | Q75: 1.44 | T75: 19.4 | U75: 184.282257 | V75: 34.200001 | W75: 1.440003 | Z75: 19.9 | AA75: 115.331001 | AB75: 23.200001 | AC75: 1.440001 | AF75: 20.1 | AG75: 164.943253 | AH75: 19.16 | AI75: 1.440001 | AL75: 20 | AM75: 512.333008 | AN75: 7.96 | AO75: 1.44 | AR75: 20.1 | AS75: 655.478271 | AT75: 5.6 | AU75: 1.44 | AX75: 21.1 | AY75: 124.301498 | AZ75: 17.940001 | BA75: 1.440001 | BD75: 20.1 | BE75: 164.936493 | BF75: 34.02 | BG75: 1.439998
B76: 19.6 | C76: 165.262 | D76: 11.36 | E76: 1.46 | H76: 21.9 | I76: 129.808243 | J76: 16.379999 | K76: 1.459999 | N76: 22.1 | O76: 57.849251 | P76: 12.2 | Q76: 1.46 | T76: 19.4 | U76: 186.710007 | V76: 34.220001 | W76: 1.460003 | Z76: 19.9 | AA76: 116.930748 | AB76: 23.219999 | AC76: 1.459999 | AF76: 20.1 | AG76: 167.433243 | AH76: 19.18 | AI76: 1.460001 | AL76: 20 | AM76: 517.707764 | AN76: 7.98 | AO76: 1.46 | AR76: 20.1 | AS76: 657.820007 | AT76: 5.62 | AU76: 1.46 | AX76: 21.1 | AY76: 126.928497 | AZ76: 17.959999 | BA76: 1.459999 | BD76: 20.1 | BE76: 167.113998 | BF76: 34.040001 | BG76: 1.459999
B77: 19.6 | C77: 167.481 | D77: 11.38 | E77: 1.48 | H77: 21.9 | I77: 131.570007 | J77: 16.4 | K77: 1.48 | N77: 22.1 | O77: 58.705502 | P77: 12.22 | Q77: 1.48 | T77: 19.4 | U77: 189.356247 | V77: 34.240002 | W77: 1.480004 | Z77: 19.9 | AA77: 118.622253 | AB77: 23.24 | AC77: 1.48 | AF77: 20.1 | AG77: 169.390747 | AH77: 19.200001 | AI77: 1.480002 | AL77: 20 | AM77: 523.002991 | AN77: 8 | AO77: 1.48 | AR77: 20.1 | AS77: 659.874512 | AT77: 5.64 | AU77: 1.48 | AX77: 21.1 | AY77: 129.511246 | AZ77: 17.98 | BA77: 1.48 | BD77: 20.1 | BE77: 168.873001 | BF77: 34.060001 | BG77: 1.479999
B78: 19.6 | C78: 169.597 | D78: 11.4 | E78: 1.5 | H78: 21.9 | I78: 132.998505 | J78: 16.42 | K78: 1.5 | N78: 22.1 | O78: 59.554249 | P78: 12.24 | Q78: 1.5 | T78: 19.5 | U78: 191.736755 | V78: 34.259998 | W78: 1.5 | Z78: 19.9 | AA78: 120.350998 | AB78: 23.26 | AC78: 1.5 | AF78: 20.1 | AG78: 171.952744 | AH78: 19.219999 | AI78: 1.5 | AL78: 20 | AM78: 528.16626 | AN78: 8.02 | AO78: 1.5 | AX78: 21.1 | AY78: 131.6315 | AZ78: 18 | BA78: 1.5 | BD78: 20.1 | BE78: 171.016754 | BF78: 34.080002 | BG78: 1.5
B79: 19.6 | C79: 171.707 | D79: 11.42 | E79: 1.52 | H79: 21.9 | I79: 134.858002 | J79: 16.440001 | K79: 1.520001 | N79: 22.1 | O79: 60.574249 | P79: 12.26 | Q79: 1.52 | T79: 19.5 | U79: 194.775757 | V79: 34.279999 | W79: 1.520001 | Z79: 19.9 | AA79: 121.775497 | AB79: 23.280001 | AC79: 1.520001 | AF79: 20.1 | AG79: 174.342743 | AH79: 19.24 | AI79: 1.520001 | AL79: 20 | AM79: 533.460999 | AN79: 8.04 | AO79: 1.52 | AX79: 21.1 | AY79: 134.34375 | AZ79: 18.02 | BA79: 1.52 | BD79: 20.1 | BE79: 172.815002 | BF79: 34.099998 | BG79: 1.519996
B80: 19.6 | C80: 173.848 | D80: 11.44 | E80: 1.54 | H80: 21.9 | I80: 136.464493 | J80: 16.459999 | K80: 1.539999 | N80: 22.1 | O80: 61.446999 | P80: 12.28 | Q80: 1.54 | T80: 19.5 | U80: 197.24675 | V80: 34.299999 | W80: 1.540001 | Z80: 19.9 | AA80: 123.671501 | AB80: 23.299999 | AC80: 1.539999 | AF80: 20.1 | AG80: 176.673752 | AH80: 19.26 | AI80: 1.540001 | AL80: 20 | AM80: 538.527527 | AN80: 8.06 | AO80: 1.54 | AX80: 21.1 | AY80: 136.889755 | AZ80: 18.040001 | BA80: 1.540001 | BD80: 20.1 | BE80: 174.467499 | BF80: 34.119999 | BG80: 1.539997
B81: 19.7 | C81: 175.572 | D81: 11.46 | E81: 1.56 | H81: 21.9 | I81: 138.281998 | J81: 16.48 | K81: 1.56 | N81: 22.1 | O81: 62.459999 | P81: 12.3 | Q81: 1.56 | T81: 19.5 | U81: 199.699753 | V81: 34.32 | W81: 1.560002 | Z81: 19.9 | AA81: 125.309753 | AB81: 23.32 | AC81: 1.56 | AF81: 20.1 | AG81: 179.457504 | AH81: 19.280001 | AI81: 1.560002 | AL81: 20 | AM81: 543.325012 | AN81: 8.08 | AO81: 1.56 | AX81: 21.1 | AY81: 139.53125 | AZ81: 18.059999 | BA81: 1.559999 | BD81: 20.1 | BE81: 176.742004 | BF81: 34.139999 | BG81: 1.559997
B82: 19.7 | C82: 177.768 | D82: 11.48 | E82: 1.58 | H82: 21.9 | I82: 139.930496 | J82: 16.5 | K82: 1.58 | N82: 22.1 | O82: 63.293499 | P82: 12.32 | Q82: 1.58 | T82: 19.5 | U82: 202.454742 | V82: 34.34 | W82: 1.580002 | Z82: 19.9 | AA82: 127.075996 | AB82: 23.34 | AC82: 1.58 | AF82: 20.1 | AG82: 181.847244 | AH82: 19.299999 | AI82: 1.58 | AL82: 20 | AM82: 548.112244 | AN82: 8.1 | AO82: 1.58 | AX82: 21.2 | AY82: 142.013748 | AZ82: 18.08 | BA82: 1.58 | BD82: 20.1 | BE82: 178.448502 | BF82: 34.16 | BG82: 1.579998
B83: 19.7 | C83: 179.73 | D83: 11.5 | E83: 1.6 | H83: 21.9 | I83: 141.365494 | J83: 16.52 | K83: 1.6 | N83: 22.1 | O83: 64.169502 | P83: 12.34 | Q83: 1.6 | T83: 19.5 | U83: 204.933243 | V83: 34.360001 | W83: 1.600003 | Z83: 19.9 | AA83: 128.957993 | AB83: 23.360001 | AC83: 1.600001 | AF83: 20.1 | AG83: 184.664246 | AH83: 19.32 | AI83: 1.600001 | AL83: 20 | AM83: 552.780273 | AN83: 8.12 | AO83: 1.6 | AX83: 21.2 | AY83: 144.095993 | AZ83: 18.1 | BA83: 1.6 | BD83: 20.1 | BE83: 180.641754 | BF83: 34.18 | BG83: 1.599998
B84: 19.7 | C84: 181.717 | D84: 11.52 | E84: 1.62 | H84: 21.9 | I84: 143.244247 | J84: 16.540001 | K84: 1.620001 | N84: 22.1 | O84: 65.184753 | P84: 12.36 | Q84: 1.62 | T84: 19.5 | U84: 207.951508 | V84: 34.380001 | W84: 1.620003 | Z84: 19.9 | AA84: 130.442993 | AB84: 23.379999 | AC84: 1.619999 | AF84: 20.1 | AG84: 187.143005 | AH84: 19.34 | AI84: 1.620001 | AL84: 20 | AM84: 557.350769 | AN84: 8.14 | AO84: 1.62 | AX84: 21.2 | AY84: 146.766251 | AZ84: 18.120001 | BA84: 1.620001 | BD84: 20.1 | BE84: 182.354752 | BF84: 34.200001 | BG84: 1.619999
B85: 19.7 | C85: 183.819 | D85: 11.54 | E85: 1.64 | H85: 21.9 | I85: 144.823746 | J85: 16.559999 | K85: 1.639999 | N85: 22.1 | O85: 66.11525 | P85: 12.38 | Q85: 1.64 | T85: 19.5 | U85: 210.261749 | V85: 34.400002 | W85: 1.640004 | Z85: 19.9 | AA85: 132.233994 | AB85: 23.4 | AC85: 1.64 | AF85: 20.1 | AG85: 189.620255 | AH85: 19.360001 | AI85: 1.640002 | AL85: 20 | AM85: 561.771973 | AN85: 8.16 | AO85: 1.64 | AX85: 21.4 | AY85: 149.214493 | AZ85: 18.139999 | BA85: 1.639999 | BD85: 20.1 | BE85: 183.988998 | BF85: 34.220001 | BG85: 1.639999
B86: 19.7 | C86: 185.437 | D86: 11.56 | E86: 1.66 | H86: 21.9 | I86: 146.552505 | J86: 16.58 | K86: 1.66 | N86: 22.1 | O86: 67.077499 | P86: 12.4 | Q86: 1.66 | T86: 19.5 | U86: 212.785751 | V86: 34.419998 | W86: 1.66 | Z86: 19.9 | AA86: 133.781006 | AB86: 23.42 | AC86: 1.66 | AF86: 20.1 | AG86: 192.170258 | AH86: 19.379999 | AI86: 1.66 | AL86: 20 | AM86: 566.089722 | AN86: 8.18 | AO86: 1.66 | AX86: 21.4 | AY86: 151.897995 | AZ86: 18.16 | BA86: 1.66 | BD86: 20.1 | BE86: 186.185501 | BF86: 34.240002 | BG86: 1.66
B87: 19.7 | C87: 187.557 | D87: 11.58 | E87: 1.68 | H87: 21.9 | I87: 148.159744 | J87: 16.6 | K87: 1.68 | N87: 22.1 | O87: 67.902496 | P87: 12.42 | Q87: 1.68 | T87: 19.5 | U87: 215.406494 | V87: 34.439999 | W87: 1.680001 | Z87: 19.9 | AA87: 135.622498 | AB87: 23.440001 | AC87: 1.680001 | AF87: 20.1 | AG87: 194.543243 | AH87: 19.4 | AI87: 1.680001 | AL87: 20 | AM87: 570.519775 | AN87: 8.2 | AO87: 1.68 | AX87: 21.4 | AY87: 154.331253 | AZ87: 18.18 | BA87: 1.68 | BD87: 20.1 | BE87: 187.974747 | BF87: 34.259998 | BG87: 1.679996
B88: 19.7 | C88: 189.49 | D88: 11.6 | E88: 1.7 | H88: 21.9 | I88: 149.722244 | J88: 16.620001 | K88: 1.700001 | N88: 22.1 | O88: 68.799751 | P88: 12.44 | Q88: 1.7 | T88: 19.5 | U88: 217.806 | V88: 34.459999 | W88: 1.700001 | Z88: 19.9 | AA88: 137.309753 | AB88: 23.459999 | AC88: 1.699999 | AF88: 20.1 | AG88: 197.337494 | AH88: 19.42 | AI88: 1.700001 | AL88: 20 | AM88: 574.628723 | AN88: 8.22 | AO88: 1.7 | AX88: 21.4 | AY88: 156.493744 | AZ88: 18.200001 | BA88: 1.700001 | BD88: 20.1 | BE88: 189.962753 | BF88: 34.279999 | BG88: 1.699997
B89: 19.7 | C89: 191.389 | D89: 11.62 | E89: 1.72 | H89: 21.9 | I89: 151.57225 | J89: 16.639999 | K89: 1.719999 | N89: 22.1 | O89: 69.80925 | P89: 12.46 | Q89: 1.72 | T89: 19.5 | U89: 220.603745 | V89: 34.48 | W89: 1.720002 | Z89: 19.9 | AA89: 138.839249 | AB89: 23.48 | AC89: 1.72 | AF89: 20.1 | AG89: 199.650757 | AH89: 19.440001 | AI89: 1.720002 | AL89: 20 | AM89: 578.639221 | AN89: 8.24 | AO89: 1.72 | AX89: 21.4 | AY89: 159.183502 | AZ89: 18.219999 | BA89: 1.719999 | BD89: 20.1 | BE89: 191.57225 | BF89: 34.299999 | BG89: 1.719997
B90: 19.7 | C90: 193.253 | D90: 11.64 | E90: 1.74 | H90: 21.9 | I90: 153.187744 | J90: 16.66 | K90: 1.74 | N90: 22.1 | O90: 70.731499 | P90: 12.48 | Q90: 1.74 | T90: 19.5 | U90: 222.860748 | V90: 34.5 | W90: 1.740002 | Z90: 19.9 | AA90: 140.641006 | AB90: 23.5 | AC90: 1.74 | AF90: 20.1 | AG90: 202.357758 | AH90: 19.459999 | AI90: 1.74 | AL90: 20 | AM90: 582.519775 | AN90: 8.26 | AO90: 1.74 | AX90: 21.4 | AY90: 161.533249 | AZ90: 18.24 | BA90: 1.74 | BD90: 20.1 | BE90: 193.384003 | BF90: 34.32 | BG90: 1.739998
B91: 19.7 | C91: 194.794 | D91: 11.66 | E91: 1.76 | H91: 21.9 | I91: 155.068497 | J91: 16.68 | K91: 1.76 | N91: 22.1 | O91: 71.689003 | P91: 12.5 | Q91: 1.76 | T91: 19.5 | U91: 225.326004 | V91: 34.52 | W91: 1.760002 | Z91: 19.9 | AA91: 142.097504 | AB91: 23.52 | AC91: 1.76 | AF91: 20.1 | AG91: 205.120499 | AH91: 19.48 | AI91: 1.760001 | AL91: 20 | AM91: 586.187988 | AN91: 8.28 | AO91: 1.76 | AX91: 21.4 | AY91: 164.171249 | AZ91: 18.26 | BA91: 1.76 | BD91: 20.1 | BE91: 195.553253 | BF91: 34.34 | BG91: 1.759998
B92: 19.7 | C92: 196.899 | D92: 11.68 | E92: 1.78 | H92: 21.9 | I92: 156.615753 | J92: 16.700001 | K92: 1.780001 | N92: 22.1 | O92: 72.468002 | P92: 12.52 | Q92: 1.78 | T92: 19.5 | U92: 227.858246 | V92: 34.540001 | W92: 1.780003 | Z92: 19.9 | AA92: 144.047256 | AB92: 23.540001 | AC92: 1.780001 | AF92: 20.1 | AG92: 207.695496 | AH92: 19.5 | AI92: 1.780001 | AL92: 20 | AM92: 589.727478 | AN92: 8.3 | AO92: 1.78 | AX92: 21.4 | AY92: 166.619995 | AZ92: 18.280001 | BA92: 1.780001 | BD92: 20.1 | BE92: 197.482758 | BF92: 34.360001 | BG92: 1.779999
B93: 19.7 | C93: 198.568 | D93: 11.7 | E93: 1.8 | H93: 21.9 | I93: 158.222 | J93: 16.719999 | K93: 1.799999 | N93: 22.1 | O93: 73.403999 | P93: 12.54 | Q93: 1.8 | T93: 19.5 | U93: 230.241745 | V93: 34.560001 | W93: 1.800003 | Z93: 19.9 | AA93: 145.673248 | AB93: 23.559999 | AC93: 1.799999 | AF93: 20.1 | AG93: 210.630249 | AH93: 19.52 | AI93: 1.800001 | AL93: 20 | AM93: 593.120483 | AN93: 8.32 | AO93: 1.8 | AX93: 21.4 | AY93: 168.831757 | AZ93: 18.299999 | BA93: 1.799999 | BD93: 20.1 | BE93: 199.520004 | BF93: 34.380001 | BG93: 1.799999
B94: 19.7 | C94: 200.473 | D94: 11.72 | E94: 1.82 | H94: 21.9 | I94: 160.098755 | J94: 16.74 | K94: 1.82 | N94: 22.1 | O94: 74.386749 | P94: 12.56 | Q94: 1.82 | T94: 19.5 | U94: 232.946243 | V94: 34.580002 | W94: 1.820004 | Z94: 19.9 | AA94: 147.129745 | AB94: 23.58 | AC94: 1.82 | AF94: 20.1 | AG94: 212.934006 | AH94: 19.540001 | AI94: 1.820002 | AL94: 20 | AM94: 596.276489 | AN94: 8.34 | AO94: 1.82 | AX94: 21.4 | AY94: 171.482254 | AZ94: 18.32 | BA94: 1.82 | BD94: 20.1 | BE94: 201.060257 | BF94: 34.400002 | BG94: 1.82
B95: 19.7 | C95: 202.299 | D95: 11.74 | E95: 1.84 | H95: 21.9 | I95: 161.734497 | J95: 16.76 | K95: 1.84 | N95: 22.1 | O95: 75.249496 | P95: 12.58 | Q95: 1.84 | T95: 19.5 | U95: 235.084503 | V95: 34.599998 | W95: 1.84 | Z95: 19.9 | AA95: 148.887253 | AB95: 23.6 | AC95: 1.84 | AF95: 20.1 | AG95: 215.5755 | AH95: 19.559999 | AI95: 1.84 | AL95: 20 | AM95: 599.380981 | AN95: 8.36 | AO95: 1.84 | AX95: 21.4 | AY95: 173.783249 | AZ95: 18.34 | BA95: 1.84 | BD95: 20.1 | BE95: 202.940994 | BF95: 34.419998 | BG95: 1.839996
B96: 19.7 | C96: 203.93 | D96: 11.76 | E96: 1.86 | H96: 21.9 | I96: 163.576996 | J96: 16.780001 | K96: 1.860001 | N96: 22.1 | O96: 76.226997 | P96: 12.6 | Q96: 1.86 | T96: 19.5 | U96: 237.524994 | V96: 34.619999 | W96: 1.860001 | Z96: 19.9 | AA96: 150.236252 | AB96: 23.620001 | AC96: 1.860001 | AF96: 20.1 | AG96: 218.298492 | AH96: 19.58 | AI96: 1.860001 | AL96: 20 | AM96: 602.364502 | AN96: 8.38 | AO96: 1.86 | AX96: 21.4 | AY96: 176.391006 | AZ96: 18.360001 | BA96: 1.860001 | BD96: 20.1 | BE96: 205.016998 | BF96: 34.439999 | BG96: 1.859997
B97: 19.7 | C97: 205.955 | D97: 11.78 | E97: 1.88 | H97: 21.9 | I97: 165.100494 | J97: 16.799999 | K97: 1.879999 | N97: 22.1 | O97: 76.959 | P97: 12.62 | Q97: 1.88 | T97: 19.5 | U97: 239.851257 | V97: 34.639999 | W97: 1.880001 | Z97: 19.9 | AA97: 152.058502 | AB97: 23.639999 | AC97: 1.879999 | AF97: 20.1 | AG97: 220.956757 | AH97: 19.6 | AI97: 1.880001 | AL97: 20 | AM97: 605.278748 | AN97: 8.4 | AO97: 1.88 | AX97: 21.4 | AY97: 178.813995 | AZ97: 18.379999 | BA97: 1.879999 | BD97: 20.1 | BE97: 206.900253 | BF97: 34.459999 | BG97: 1.879997
B98: 19.7 | C98: 207.597 | D98: 11.8 | E98: 1.9 | H98: 21.9 | I98: 166.845245 | J98: 16.82 | K98: 1.9 | N98: 22.1 | O98: 77.959999 | P98: 12.64 | Q98: 1.9 | T98: 19.5 | U98: 242.220505 | V98: 34.66 | W98: 1.900002 | Z98: 19.9 | AA98: 153.438995 | AB98: 23.66 | AC98: 1.9 | AF98: 20.1 | AG98: 223.746506 | AH98: 19.620001 | AI98: 1.900002 | AL98: 20 | AM98: 608.117249 | AN98: 8.42 | AO98: 1.9 | AX98: 21.4 | AY98: 181.139252 | AZ98: 18.4 | BA98: 1.9 | BD98: 20.1 | BE98: 208.831497 | BF98: 34.48 | BG98: 1.899998
B99: 19.7 | C99: 209.52 | D99: 11.82 | E99: 1.92 | H99: 21.9 | I99: 168.688507 | J99: 16.84 | K99: 1.92 | N99: 22.1 | O99: 78.889748 | P99: 12.66 | Q99: 1.92 | T99: 19.5 | U99: 244.753754 | V99: 34.68 | W99: 1.920002 | Z99: 19.9 | AA99: 154.671753 | AB99: 23.68 | AC99: 1.92 | AF99: 20.1 | AG99: 225.947754 | AH99: 19.639999 | AI99: 1.92 | AL99: 20 | AM99: 610.66626 | AN99: 8.44 | AO99: 1.92 | AX99: 21.4 | AY99: 183.770493 | AZ99: 18.42 | BA99: 1.92 | BD99: 20.1 | BE99: 210.190002 | BF99: 34.5 | BG99: 1.919998
B100: 19.7 | C100: 211.262 | D100: 11.84 | E100: 1.94 | H100: 21.9 | I100: 170.291748 | J100: 16.860001 | K100: 1.940001 | N100: 22.1 | O100: 79.824249 | P100: 12.68 | Q100: 1.94 | T100: 19.5 | U100: 246.608505 | V100: 34.700001 | W100: 1.940003 | Z100: 19.9 | AA100: 156.141754 | AB100: 23.700001 | AC100: 1.940001 | AF100: 20.1 | AG100: 228.589996 | AH100: 19.66 | AI100: 1.940001 | AL100: 20 | AM100: 613.235779 | AN100: 8.46 | AO100: 1.94 | AX100: 21.4 | AY100: 186.120743 | AZ100: 18.440001 | BA100: 1.940001 | BD100: 20.1 | BE100: 212.165756 | BF100: 34.52 | BG100: 1.939998
B101: 19.7 | C101: 212.847 | D101: 11.86 | E101: 1.96 | H101: 21.9 | I101: 172.005753 | J101: 16.879999 | K101: 1.959999 | N101: 22.1 | O101: 80.736 | P101: 12.7 | Q101: 1.96 | T101: 19.5 | U101: 248.9095 | V101: 34.720001 | W101: 1.960003 | Z101: 19.9 | AA101: 157.141495 | AB101: 23.719999 | AC101: 1.959999 | AF101: 20.1 | AG101: 231.130005 | AH101: 19.68 | AI101: 1.960001 | AL101: 20 | AM101: 615.779724 | AN101: 8.48 | AO101: 1.96 | AX101: 21.4 | AY101: 188.632248 | AZ101: 18.459999 | BA101: 1.959999 | BD101: 20.1 | BE101: 214.172745 | BF101: 34.540001 | BG101: 1.959999
B102: 19.7 | C102: 214.771 | D102: 11.88 | E102: 1.98 | H102: 21.9 | I102: 173.417755 | J102: 16.9 | K102: 1.98 | N102: 22.1 | O102: 81.478752 | P102: 12.72 | Q102: 1.98 | T102: 19.5 | U102: 250.902756 | V102: 34.740002 | W102: 1.980004 | Z102: 19.9 | AA102: 158.488998 | AB102: 23.74 | AC102: 1.98 | AF102: 20.1 | AG102: 233.772995 | AH102: 19.700001 | AI102: 1.980002 | AL102: 20 | AM102: 618.132996 | AN102: 8.5 | AO102: 1.98 | AX102: 21.4 | AY102: 190.815506 | AZ102: 18.48 | BA102: 1.98 | BD102: 20.1 | BE102: 216.003754 | BF102: 34.560001 | BG102: 1.979999
B103: 19.7 | C103: 216.411 | D103: 11.9 | E103: 2 | H103: 21.9 | I103: 175.147507 | J103: 16.92 | K103: 2 | N103: 22.1 | O103: 82.459747 | P103: 12.74 | Q103: 2 | T103: 19.5 | U103: 253.246506 | V103: 34.759998 | W103: 2 | Z103: 19.9 | AA103: 159.443497 | AB103: 23.76 | AC103: 2 | AF103: 20.1 | AG103: 236.620255 | AH103: 19.719999 | AI103: 2 | AL103: 20 | AM103: 620.408997 | AN103: 8.52 | AO103: 2 | AX103: 21.4 | AY103: 193.155746 | AZ103: 18.5 | BA103: 2 | BD103: 20.1 | BE103: 217.925003 | BF103: 34.580002 | BG103: 2
B104: 19.7 | C104: 218.305 | D104: 11.92 | E104: 2.02 | H104: 21.9 | I104: 176.723755 | J104: 16.940001 | K104: 2.020001 | N104: 22.1 | O104: 83.388496 | P104: 12.76 | Q104: 2.02 | T104: 19.5 | U104: 255.684006 | V104: 34.779999 | W104: 2.020001 | Z104: 19.9 | AA104: 160.394257 | AB104: 23.780001 | AC104: 2.020001 | AF104: 20.1 | AG104: 238.766754 | AH104: 19.74 | AI104: 2.020001 | AL104: 20 | AM104: 622.565002 | AN104: 8.54 | AO104: 2.02 | AX104: 21.4 | AY104: 195.694 | AZ104: 18.52 | BA104: 2.02 | BD104: 20.1 | BE104: 219.217499 | BF104: 34.599998 | BG104: 2.019996
B105: 19.7 | C105: 219.886 | D105: 11.94 | E105: 2.04 | H105: 21.9 | I105: 178.300003 | J105: 16.959999 | K105: 2.039999 | N105: 22.1 | O105: 84.358253 | P105: 12.78 | Q105: 2.04 | T105: 19.5 | U105: 257.37326 | V105: 34.799999 | W105: 2.040001 | Z105: 19.9 | AA105: 161.473007 | AB105: 23.799999 | AC105: 2.039999 | AF105: 20.1 | AG105: 241.4375 | AH105: 19.76 | AI105: 2.040001 | AL105: 20 | AM105: 624.696228 | AN105: 8.56 | AO105: 2.04 | AX105: 21.4 | AY105: 197.853745 | AZ105: 18.540001 | BA105: 2.040001 | BD105: 20.1 | BE105: 221.262497 | BF105: 34.619999 | BG105: 2.039997
B106: 19.7 | C106: 221.584 | D106: 11.96 | E106: 2.06 | H106: 21.9 | I106: 179.933502 | J106: 16.98 | K106: 2.06 | N106: 22.1 | O106: 85.243248 | P106: 12.8 | Q106: 2.06 | T106: 19.5 | U106: 259.593506 | V106: 34.82 | W106: 2.060002 | Z106: 19.9 | AA106: 162.340256 | AB106: 23.82 | AC106: 2.06 | AF106: 20.1 | AG106: 244.093506 | AH106: 19.780001 | AI106: 2.060002 | AL106: 20 | AM106: 626.64502 | AN106: 8.58 | AO106: 2.06 | AX106: 21.4 | AY106: 200.317505 | AZ106: 18.559999 | BA106: 2.059999 | BD106: 20.1 | BE106: 223.175507 | BF106: 34.639999 | BG106: 2.059997
B107: 19.7 | C107: 223.515 | D107: 11.98 | E107: 2.08 | H107: 21.9 | I107: 181.180756 | J107: 17 | K107: 2.08 | N107: 22.1 | O107: 86.014748 | P107: 12.82 | Q107: 2.08 | T107: 19.5 | U107: 261.571747 | V107: 34.84 | W107: 2.080002 | Z107: 19.9 | AA107: 163.350754 | AB107: 23.84 | AC107: 2.08 | AF107: 20.1 | AG107: 246.860504 | AH107: 19.799999 | AI107: 2.08 | AL107: 20 | AM107: 628.218262 | AN107: 8.6 | AO107: 2.08 | AX107: 21.4 | AY107: 202.419006 | AZ107: 18.58 | BA107: 2.08 | BD107: 20.1 | BE107: 225.035004 | BF107: 34.66 | BG107: 2.079998
B108: 19.7 | C108: 225.145 | D108: 12 | E108: 2.1 | H108: 21.9 | I108: 182.876251 | J108: 17.02 | K108: 2.1 | N108: 22.1 | O108: 86.987747 | P108: 12.84 | Q108: 2.1 | T108: 19.5 | U108: 264.051514 | V108: 34.860001 | W108: 2.100003 | Z108: 19.9 | AA108: 163.901001 | AB108: 23.860001 | AC108: 2.100001 | AF108: 20.1 | AG108: 249.503754 | AH108: 19.82 | AI108: 2.100001 | AL108: 20 | AM108: 629.879517 | AN108: 8.62 | AO108: 2.1 | AX108: 21.4 | AY108: 204.731506 | AZ108: 18.6 | BA108: 2.1 | BD108: 20.1 | BE108: 226.852997 | BF108: 34.68 | BG108: 2.099998
B109: 19.7 | C109: 227.037 | D109: 12.02 | E109: 2.12 | H109: 21.9 | I109: 184.455002 | J109: 17.040001 | K109: 2.120001 | N109: 22.1 | O109: 87.870247 | P109: 12.86 | Q109: 2.12 | T109: 19.5 | U109: 266.676514 | V109: 34.880001 | W109: 2.120003 | Z109: 19.9 | AA109: 164.716507 | AB109: 23.879999 | AC109: 2.119999 | AF109: 20.1 | AG109: 251.782745 | AH109: 19.84 | AI109: 2.120001 | AL109: 20 | AM109: 631.288025 | AN109: 8.64 | AO109: 2.12 | AX109: 21.4 | AY109: 207.142746 | AZ109: 18.620001 | BA109: 2.120001 | BD109: 20.1 | BE109: 228.152756 | BF109: 34.700001 | BG109: 2.119999
B110: 19.7 | C110: 228.575 | D110: 12.04 | E110: 2.14 | H110: 21.9 | I110: 185.963745 | J110: 17.059999 | K110: 2.139999 | N110: 22.1 | O110: 88.808502 | P110: 12.88 | Q110: 2.14 | T110: 19.5 | U110: 268.919739 | V110: 34.900002 | W110: 2.140004 | Z110: 19.9 | AA110: 165.466003 | AB110: 23.9 | AC110: 2.14 | AF110: 20.1 | AG110: 254.459747 | AH110: 19.860001 | AI110: 2.140002 | AL110: 20 | AM110: 632.602478 | AN110: 8.66 | AO110: 2.14 | AX110: 21.4 | AY110: 209.521744 | AZ110: 18.639999 | BA110: 2.139999 | BD110: 20.1 | BE110: 230.070007 | BF110: 34.720001 | BG110: 2.139999
B111: 19.8 | C111: 230.18 | D111: 12.06 | E111: 2.16 | H111: 21.9 | I111: 187.530746 | J111: 17.08 | K111: 2.16 | N111: 22.1 | O111: 89.719498 | P111: 12.9 | Q111: 2.16 | T111: 19.5 | U111: 271.530762 | V111: 34.919998 | W111: 2.16 | Z111: 19.9 | AA111: 166.065002 | AB111: 23.92 | AC111: 2.16 | AF111: 20.1 | AG111: 256.976746 | AH111: 19.879999 | AI111: 2.16 | AL111: 20 | AM111: 633.749023 | AN111: 8.68 | AO111: 2.16 | AX111: 21.4 | AY111: 211.925003 | AZ111: 18.66 | BA111: 2.16 | BD111: 20.1 | BE111: 231.837997 | BF111: 34.740002 | BG111: 2.16
B112: 19.8 | C112: 232.045 | D112: 12.08 | E112: 2.18 | H112: 21.9 | I112: 188.690506 | J112: 17.1 | K112: 2.18 | N112: 22.1 | O112: 90.477997 | P112: 12.92 | Q112: 2.18 | T112: 19.5 | U112: 273.65976 | V112: 34.939999 | W112: 2.180001 | Z112: 19.9 | AA112: 166.926743 | AB112: 23.940001 | AC112: 2.180001 | AF112: 20.1 | AG112: 259.684998 | AH112: 19.9 | AI112: 2.180001 | AL112: 20 | AM112: 634.70575 | AN112: 8.7 | AO112: 2.18 | AX112: 21.4 | AY112: 213.863998 | AZ112: 18.68 | BA112: 2.18 | BD112: 20.1 | BE112: 233.754745 | BF112: 34.759998 | BG112: 2.179996
B113: 19.8 | C113: 233.733 | D113: 12.1 | E113: 2.2 | H113: 21.9 | I113: 190.248001 | J113: 17.120001 | K113: 2.200001 | N113: 22.1 | O113: 91.467751 | P113: 12.94 | Q113: 2.2 | T113: 19.5 | U113: 276.559753 | V113: 34.959999 | W113: 2.200001 | Z113: 19.9 | AA113: 167.310257 | AB113: 23.959999 | AC113: 2.199999 | AF113: 20.1 | AG113: 262.261261 | AH113: 19.92 | AI113: 2.200001 | AL113: 20 | AM113: 635.666992 | AN113: 8.72 | AO113: 2.2 | AX113: 21.4 | AY113: 216.146744 | AZ113: 18.700001 | BA113: 2.200001 | BD113: 20.1 | BE113: 235.661743 | BF113: 34.779999 | BG113: 2.199997
B114: 19.8 | C114: 235.479 | D114: 12.12 | E114: 2.22 | H114: 21.9 | I114: 191.786499 | J114: 17.139999 | K114: 2.219999 | N114: 22.1 | O114: 92.317001 | P114: 12.96 | Q114: 2.22 | T114: 19.5 | U114: 279.283264 | V114: 34.98 | W114: 2.220002 | Z114: 19.9 | AA114: 168.120499 | AB114: 23.98 | AC114: 2.22 | AF114: 20.1 | AG114: 264.576996 | AH114: 19.940001 | AI114: 2.220002 | AL114: 20 | AM114: 636.461975 | AN114: 8.74 | AO114: 2.22 | AX114: 21.4 | AY114: 218.472504 | AZ114: 18.719999 | BA114: 2.219999 | BD114: 20.1 | BE114: 237.003754 | BF114: 34.799999 | BG114: 2.219997
B115: 19.8 | C115: 236.874 | D115: 12.14 | E115: 2.24 | H115: 21.9 | I115: 193.341507 | J115: 17.16 | K115: 2.24 | N115: 22.1 | O115: 93.26075 | P115: 12.98 | Q115: 2.24 | T115: 19.5 | U115: 281.474487 | V115: 35 | W115: 2.240002 | Z115: 19.9 | AA115: 168.872757 | AB115: 24 | AC115: 2.24 | AF115: 20.1 | AG115: 267.288513 | AH115: 19.959999 | AI115: 2.24 | AL115: 20 | AM115: 637.051758 | AN115: 8.76 | AO115: 2.24 | AX115: 21.4 | AY115: 220.699249 | AZ115: 18.74 | BA115: 2.24 | BD115: 20.1 | BE115: 239.076004 | BF115: 34.82 | BG115: 2.239998
B116: 19.8 | C116: 238.556 | D116: 12.16 | E116: 2.26 | H116: 21.9 | I116: 194.724503 | J116: 17.18 | K116: 2.26 | N116: 22.1 | O116: 94.149002 | P116: 13 | Q116: 2.26 | T116: 19.5 | U116: 284.029755 | V116: 35.02 | W116: 2.260002 | Z116: 19.9 | AA116: 169.560745 | AB116: 24.02 | AC116: 2.26 | AF116: 20.1 | AG116: 269.774261 | AH116: 19.98 | AI116: 2.260001 | AL116: 20 | AM116: 637.735474 | AN116: 8.78 | AO116: 2.26 | AX116: 21.4 | AY116: 223.043503 | AZ116: 18.76 | BA116: 2.26 | BD116: 20.1 | BE116: 240.783005 | BF116: 34.84 | BG116: 2.259998
B117: 19.8 | C117: 240.379 | D117: 12.18 | E117: 2.28 | H117: 21.9 | I117: 195.956253 | J117: 17.200001 | K117: 2.280001 | N117: 22.1 | O117: 94.914001 | P117: 13.02 | Q117: 2.28 | T117: 19.5 | U117: 286.290497 | V117: 35.040001 | W117: 2.280003 | Z117: 19.9 | AA117: 170.393753 | AB117: 24.040001 | AC117: 2.280001 | AF117: 20.1 | AG117: 272.556 | AH117: 20 | AI117: 2.280001 | AL117: 20 | AM117: 638.232239 | AN117: 8.8 | AO117: 2.28 | AX117: 21.4 | AY117: 224.944 | AZ117: 18.780001 | BA117: 2.280001 | BD117: 20.1 | BE117: 242.738998 | BF117: 34.860001 | BG117: 2.279999
B118: 19.8 | C118: 242.037 | D118: 12.2 | E118: 2.3 | H118: 21.9 | I118: 197.541748 | J118: 17.219999 | K118: 2.299999 | N118: 22.1 | O118: 95.847252 | P118: 13.04 | Q118: 2.3 | T118: 19.5 | U118: 289.144012 | V118: 35.060001 | W118: 2.300003 | Z118: 19.9 | AA118: 170.718002 | AB118: 24.059999 | AC118: 2.299999 | AF118: 20.1 | AG118: 275.024994 | AH118: 20.02 | AI118: 2.300001 | AL118: 20 | AM118: 638.671753 | AN118: 8.82 | AO118: 2.3 | AX118: 21.2 | AY118: 227.179504 | AZ118: 18.799999 | BA118: 2.299999 | BD118: 20.1 | BE118: 244.472244 | BF118: 34.880001 | BG118: 2.299999
B119: 19.8 | C119: 243.792 | D119: 12.22 | E119: 2.32 | H119: 21.9 | I119: 198.969757 | J119: 17.24 | K119: 2.32 | N119: 22.1 | O119: 96.666252 | P119: 13.06 | Q119: 2.32 | T119: 19.5 | U119: 291.623993 | V119: 35.080002 | W119: 2.320004 | Z119: 19.9 | AA119: 171.528 | AB119: 24.08 | AC119: 2.32 | AF119: 20.1 | AG119: 277.289764 | AH119: 20.040001 | AI119: 2.320002 | AL119: 20 | AM119: 639.004517 | AN119: 8.84 | AO119: 2.32 | AX119: 21.2 | AY119: 229.496002 | AZ119: 18.82 | BA119: 2.32 | BD119: 20.1 | BE119: 245.761002 | BF119: 34.900002 | BG119: 2.32
B120: 19.8 | C120: 245.157 | D120: 12.24 | E120: 2.34 | H120: 21.9 | I120: 200.578003 | J120: 17.26 | K120: 2.34 | N120: 22.1 | O120: 97.611 | P120: 13.08 | Q120: 2.34 | T120: 19.5 | U120: 293.8815 | V120: 35.099998 | W120: 2.34 | Z120: 19.9 | AA120: 172.160751 | AB120: 24.1 | AC120: 2.34 | AF120: 20.1 | AG120: 279.941498 | AH120: 20.059999 | AI120: 2.34 | AL120: 20 | AM120: 639.229736 | AN120: 8.86 | AO120: 2.34 | AX120: 21.2 | AY120: 231.733246 | AZ120: 18.84 | BA120: 2.34 | BD120: 20.1 | BE120: 247.725998 | BF120: 34.919998 | BG120: 2.339996
B121: 19.8 | C121: 246.921 | D121: 12.26 | E121: 2.36 | H121: 21.9 | I121: 201.960754 | J121: 17.280001 | K121: 2.360001 | N121: 22.1 | O121: 98.485497 | P121: 13.1 | Q121: 2.36 | T121: 19.5 | U121: 296.364502 | V121: 35.119999 | W121: 2.360001 | Z121: 19.9 | AA121: 172.834 | AB121: 24.120001 | AC121: 2.360001 | AF121: 20.1 | AG121: 282.195251 | AH121: 20.08 | AI121: 2.360001 | AL121: 20 | AM121: 639.30127 | AN121: 8.88 | AO121: 2.36 | AX121: 21.2 | AY121: 234.033005 | AZ121: 18.860001 | BA121: 2.360001 | BD121: 20.1 | BE121: 249.274246 | BF121: 34.939999 | BG121: 2.359997
B122: 19.8 | C122: 248.631 | D122: 12.28 | E122: 2.38 | H122: 21.9 | I122: 203.155746 | J122: 17.299999 | K122: 2.379999 | N122: 22.1 | O122: 99.25 | P122: 13.12 | Q122: 2.38 | T122: 19.5 | U122: 298.528748 | V122: 35.139999 | W122: 2.380001 | Z122: 19.9 | AA122: 173.593506 | AB122: 24.139999 | AC122: 2.379999 | AF122: 20.1 | AG122: 284.967743 | AH122: 20.1 | AI122: 2.380001 | AL122: 20 | AM122: 639.170776 | AN122: 8.9 | AO122: 2.38 | AX122: 21.2 | AY122: 235.889496 | AZ122: 18.879999 | BA122: 2.379999 | BD122: 20.1 | BE122: 251.182251 | BF122: 34.959999 | BG122: 2.379997
B123: 19.8 | C123: 250.336 | D123: 12.3 | E123: 2.4 | H123: 21.9 | I123: 204.737 | J123: 17.32 | K123: 2.4 | N123: 22.1 | O123: 100.189003 | P123: 13.14 | Q123: 2.4 | T123: 19.5 | U123: 301.332489 | V123: 35.16 | W123: 2.400002 | Z123: 19.9 | AA123: 173.869247 | AB123: 24.16 | AC123: 2.4 | AF123: 20.1 | AG123: 287.342743 | AH123: 20.120001 | AI123: 2.400002 | AL123: 20 | AM123: 638.97699 | AN123: 8.92 | AO123: 2.4 | AX123: 21.2 | AY123: 237.283752 | AZ123: 18.9 | BA123: 2.4 | BD123: 20.1 | BE123: 252.796249 | BF123: 34.98 | BG123: 2.399998
B124: 19.8 | C124: 252.053 | D124: 12.32 | E124: 2.42 | H124: 21.9 | I124: 206.093002 | J124: 17.34 | K124: 2.42 | N124: 22.1 | O124: 101.029251 | P124: 13.16 | Q124: 2.42 | T124: 19.5 | U124: 303.55249 | V124: 35.18 | W124: 2.420002 | Z124: 19.9 | AA124: 174.613998 | AB124: 24.18 | AC124: 2.42 | AF124: 20.1 | AG124: 289.5625 | AH124: 20.139999 | AI124: 2.42 | AL124: 20 | AM124: 638.579529 | AN124: 8.94 | AO124: 2.42 | AX124: 21.2 | AY124: 239.197754 | AZ124: 18.92 | BA124: 2.42 | BD124: 20.1 | BE124: 254.183243 | BF124: 35 | BG124: 2.419998
B125: 19.8 | C125: 253.363 | D125: 12.34 | E125: 2.44 | H125: 21.9 | I125: 207.550247 | J125: 17.360001 | K125: 2.440001 | N125: 22.1 | O125: 101.966248 | P125: 13.18 | Q125: 2.44 | T125: 19.5 | U125: 305.865265 | V125: 35.200001 | W125: 2.440003 | Z125: 19.9 | AA125: 175.067749 | AB125: 24.200001 | AC125: 2.440001 | AF125: 20.1 | AG125: 294.556763 | AH125: 20.18 | AI125: 2.460001 | AL125: 20 | AM125: 637.991516 | AN125: 8.96 | AO125: 2.44 | AX125: 21.2 | AY125: 241.546005 | AZ125: 18.940001 | BA125: 2.440001 | BD125: 20.1 | BE125: 256.125488 | BF125: 35.02 | BG125: 2.439998
B126: 19.8 | C126: 255.174 | D126: 12.36 | E126: 2.46 | H126: 21.9 | I126: 208.848251 | J126: 17.379999 | K126: 2.459999 | N126: 22.1 | O126: 102.779747 | P126: 13.2 | Q126: 2.46 | T126: 19.5 | U126: 308.303497 | V126: 35.220001 | W126: 2.460003 | Z126: 19.9 | AA126: 175.512497 | AB126: 24.219999 | AC126: 2.459999 | AF126: 20.1 | AG126: 297.273254 | AH126: 20.200001 | AI126: 2.480002 | AL126: 20 | AM126: 637.482483 | AN126: 8.98 | AO126: 2.46 | AX126: 21.2 | AY126: 243.819504 | AZ126: 18.959999 | BA126: 2.459999 | BD126: 20.1 | BE126: 257.591736 | BF126: 35.040001 | BG126: 2.459999
B127: 19.8 | C127: 256.833 | D127: 12.38 | E127: 2.48 | H127: 21.9 | I127: 210.060745 | J127: 17.4 | K127: 2.48 | N127: 22.1 | O127: 103.525253 | P127: 13.22 | Q127: 2.48 | T127: 19.5 | U127: 310.480743 | V127: 35.240002 | W127: 2.480004 | Z127: 19.9 | AA127: 175.659744 | AB127: 24.24 | AC127: 2.48 | AF127: 20.1 | AG127: 299.540741 | AH127: 20.219999 | AI127: 2.5 | AL127: 20 | AM127: 636.811768 | AN127: 9 | AO127: 2.48 | AX127: 21.2 | AY127: 245.600494 | AZ127: 18.98 | BA127: 2.48 | BD127: 20.1 | BE127: 259.604004 | BF127: 35.060001 | BG127: 2.479999
B128: 19.8 | C128: 258.602 | D128: 12.4 | E128: 2.5 | H128: 21.9 | I128: 211.584503 | J128: 17.42 | K128: 2.5 | N128: 22.1 | O128: 104.543747 | P128: 13.24 | Q128: 2.5 | T128: 19.5 | U128: 313.236755 | V128: 35.259998 | W128: 2.5 | Z128: 19.9 | AA128: 175.350754 | AB128: 24.26 | AC128: 2.5 | AF128: 20.1 | AG128: 301.881256 | AH128: 20.24 | AI128: 2.520001 | AL128: 20 | AM128: 636.045471 | AN128: 9.02 | AO128: 2.5 | AX128: 21.2 | AY128: 247.955246 | AZ128: 19 | BA128: 2.5 | BD128: 20.1 | BE128: 261.232513 | BF128: 35.080002 | BG128: 2.5
B129: 19.8 | C129: 260.425 | D129: 12.42 | E129: 2.52 | H129: 21.9 | I129: 212.859497 | J129: 17.440001 | K129: 2.520001 | N129: 22.1 | O129: 105.316498 | P129: 13.26 | Q129: 2.52 | T129: 19.5 | U129: 315.542236 | V129: 35.279999 | W129: 2.520001 | Z129: 19.9 | AA129: 175.544754 | AB129: 24.280001 | AC129: 2.520001 | AF129: 20.1 | AG129: 304.444763 | AH129: 20.26 | AI129: 2.540001 | AL129: 20 | AM129: 635.193726 | AN129: 9.04 | AO129: 2.52 | AX129: 21.2 | AY129: 250.128754 | AZ129: 19.02 | BA129: 2.52 | BD129: 20.1 | BE129: 262.747986 | BF129: 35.099998 | BG129: 2.519996
B130: 19.8 | C130: 261.813 | D130: 12.44 | E130: 2.54 | H130: 21.9 | I130: 214.309006 | J130: 17.459999 | K130: 2.539999 | N130: 22.1 | O130: 106.263496 | P130: 13.28 | Q130: 2.54 | T130: 19.5 | U130: 317.905243 | V130: 35.299999 | W130: 2.540001 | Z130: 19.9 | AA130: 175.737747 | AB130: 24.299999 | AC130: 2.539999 | AF130: 20.1 | AG130: 306.750244 | AH130: 20.280001 | AI130: 2.560002 | AL130: 20 | AM130: 634.183777 | AN130: 9.06 | AO130: 2.54 | AX130: 21.2 | AY130: 252.41925 | AZ130: 19.040001 | BA130: 2.540001 | BD130: 20.1 | BE130: 264.804993 | BF130: 35.119999 | BG130: 2.539997
B131: 19.8 | C131: 263.788 | D131: 12.46 | E131: =SUM(D131,-9.9) -> 2.56 | H131: 21.9 | I131: 215.578247 | J131: 17.48 | K131: =SUM(J131,-14.92) -> 2.56 | N131: 22.1 | O131: 107.064751 | P131: 13.3 | Q131: =SUM(P131,-10.74) -> 2.56 | T131: 19.5 | U131: 320.281006 | V131: 35.32 | W131: =SUM(V131,-32.759998) -> 2.560002 | Z131: 19.9 | AA131: 176.533493 | AB131: 24.32 | AC131: =SUM(AB131,-21.76) -> 2.56 | AF131: 20.1 | AG131: 309.468994 | AH131: 20.299999 | AI131: =SUM(AH131,-17.719999) -> 2.58 | AL131: 20 | AM131: 633.16925 | AN131: 9.08 | AO131: =SUM(AN131,-6.52) -> 2.56 | AX131: 21.2 | AY131: 254.446747 | AZ131: 19.059999 | BA131: =SUM(AZ131,-16.5) -> 2.559999 | BD131: 20.1 | BE131: 266.521515 | BF131: 35.139999 | BG131: =SUM(BF131,-32.580002) -> 2.559997
B132: 19.8 | C132: 265.506 | D132: 12.48 | E132: 2.58 | H132: 21.9 | I132: 216.783997 | J132: 17.5 | K132: 2.58 | N132: 22.1 | O132: 107.89975 | P132: 13.32 | Q132: 2.58 | T132: 19.5 | U132: 322.541992 | V132: 35.34 | W132: 2.580002 | Z132: 19.9 | AA132: 177.218246 | AB132: 24.34 | AC132: 2.58 | AF132: 20.1 | AG132: 311.577515 | AH132: 20.32 | AI132: 2.600001 | AL132: 20 | AM132: 632.0755 | AN132: 9.1 | AO132: 2.58 | AX132: 21.2 | AY132: 256.35849 | AZ132: 19.08 | BA132: 2.58 | BD132: 20.1 | BE132: 268.624512 | BF132: 35.16 | BG132: 2.579998
B133: 19.8 | C133: 267.318 | D133: 12.5 | E133: 2.6 | H133: 21.9 | I133: 218.307007 | J133: 17.52 | K133: 2.6 | N133: 22.1 | O133: 108.78125 | P133: 13.34 | Q133: 2.6 | T133: 19.5 | U133: 325.270508 | V133: 35.360001 | W133: 2.600003 | Z133: 19.9 | AA133: 177.816254 | AB133: 24.360001 | AC133: 2.600001 | AF133: 20.1 | AG133: 313.947754 | AH133: 20.34 | AI133: 2.620001 | AL133: 20 | AM133: 630.783508 | AN133: 9.12 | AO133: 2.6 | AX133: 21.2 | AY133: 258.817749 | AZ133: 19.1 | BA133: 2.6 | BD133: 20.1 | BE133: 270.214264 | BF133: 35.18 | BG133: 2.599998
B134: 19.8 | C134: 269.094 | D134: 12.52 | E134: 2.62 | H134: 21.9 | I134: 219.514755 | J134: 17.540001 | K134: 2.620001 | N134: 22.1 | O134: 109.637001 | P134: 13.36 | Q134: 2.62 | T134: 19.5 | U134: 327.32251 | V134: 35.380001 | W134: 2.620003 | Z134: 19.9 | AA134: 178.932251 | AB134: 24.379999 | AC134: 2.619999 | AF134: 20.1 | AG134: 316.461243 | AH134: 20.360001 | AI134: 2.640002 | AL134: 20 | AM134: 629.474976 | AN134: 9.14 | AO134: 2.62 | AX134: 21.2 | AY134: 260.79126 | AZ134: 19.120001 | BA134: 2.620001 | BD134: 20.1 | BE134: 271.920258 | BF134: 35.200001 | BG134: 2.619999
B135: 19.8 | C135: 270.561 | D135: 12.54 | E135: 2.64 | H135: 21.9 | I135: 220.940002 | J135: 17.559999 | K135: 2.639999 | N135: 22.1 | O135: 110.539001 | P135: 13.38 | Q135: 2.64 | T135: 19.5 | U135: 329.695007 | V135: 35.400002 | W135: 2.640004 | Z135: 19.9 | AA135: 179.809998 | AB135: 24.4 | AC135: 2.64 | AF135: 20.1 | AG135: 318.789246 | AH135: 20.379999 | AI135: 2.66 | AL135: 20 | AM135: 627.92926 | AN135: 9.16 | AO135: 2.64 | AX135: 21.2 | AY135: 263.107758 | AZ135: 19.139999 | BA135: 2.639999 | BD135: 20.1 | BE135: 274.094757 | BF135: 35.220001 | BG135: 2.639999
B136: 19.8 | C136: 272.43 | D136: 12.56 | E136: 2.66 | H136: 21.9 | I136: 222.112747 | J136: 17.58 | K136: 2.66 | N136: 22.1 | O136: 111.252998 | P136: 13.4 | Q136: 2.66 | T136: 19.5 | U136: 332.007263 | V136: 35.419998 | W136: 2.66 | Z136: 19.9 | AA136: 181.126755 | AB136: 24.42 | AC136: 2.66 | AF136: 20.1 | AG136: 321.495239 | AH136: 20.4 | AI136: 2.680001 | AL136: 20 | AM136: 626.340515 | AN136: 9.18 | AO136: 2.66 | AX136: 21.2 | AY136: 265.155243 | AZ136: 19.16 | BA136: 2.66 | BD136: 20.1 | BE136: 275.928497 | BF136: 35.240002 | BG136: 2.66
B137: 19.8 | C137: 274.041 | D137: 12.58 | E137: 2.68 | H137: 21.9 | I137: 223.315994 | J137: 17.6 | K137: 2.68 | N137: 22.1 | O137: 112.146751 | P137: 13.42 | Q137: 2.68 | T137: 19.5 | U137: 334.343506 | V137: 35.439999 | W137: 2.680001 | Z137: 19.9 | AA137: 182.235001 | AB137: 24.440001 | AC137: 2.680001 | AF137: 20.1 | AG137: 323.473236 | AH137: 20.42 | AI137: 2.700001 | AL137: 20 | AM137: 624.637512 | AN137: 9.2 | AO137: 2.68 | AX137: 21.2 | AY137: 266.972748 | AZ137: 19.18 | BA137: 2.68 | BD137: 20.1 | BE137: 278.074493 | BF137: 35.259998 | BG137: 2.679996
B138: 19.8 | C138: 275.856 | D138: 12.6 | E138: 2.7 | H138: 21.9 | I138: 224.789001 | J138: 17.620001 | K138: 2.700001 | N138: 22.1 | O138: 113.0075 | P138: 13.44 | Q138: 2.7 | T138: 19.5 | U138: 336.964752 | V138: 35.459999 | W138: 2.700001 | Z138: 19.9 | AA138: 183.262253 | AB138: 24.459999 | AC138: 2.699999 | AF138: 20.1 | AG138: 325.917999 | AH138: 20.440001 | AI138: 2.720002 | AL138: 20 | AM138: 622.570984 | AN138: 9.22 | AO138: 2.7 | AX138: 21.2 | AY138: 269.345001 | AZ138: 19.200001 | BA138: 2.700001 | BD138: 20.1 | BE138: 279.610504 | BF138: 35.279999 | BG138: 2.699997
B139: 19.8 | C139: 277.54 | D139: 12.62 | E139: 2.72 | H139: 21.9 | I139: 225.993744 | J139: 17.639999 | K139: 2.719999 | N139: 22.1 | O139: 113.821503 | P139: 13.46 | Q139: 2.72 | T139: 19.5 | U139: 338.997253 | V139: 35.48 | W139: 2.720002 | Z139: 19.9 | AA139: 184.7285 | AB139: 24.48 | AC139: 2.72 | AF139: 20.1 | AG139: 328.297485 | AH139: 20.459999 | AI139: 2.74 | AL139: 20 | AM139: 619.221985 | AN139: 9.24 | AO139: 2.72 | AX139: 21.2 | AY139: 271.28775 | AZ139: 19.219999 | BA139: 2.719999 | BD139: 20.1 | BE139: 281.544006 | BF139: 35.299999 | BG139: 2.719997
B140: 19.8 | C140: 279.003 | D140: 12.64 | E140: 2.74 | H140: 21.9 | I140: 227.384247 | J140: 17.66 | K140: 2.74 | N140: 22.1 | O140: 114.690002 | P140: 13.48 | Q140: 2.74 | T140: 19.5 | U140: 341.421265 | V140: 35.5 | W140: 2.740002 | Z140: 19.9 | AA140: 185.925995 | AB140: 24.5 | AC140: 2.74 | AF140: 20.1 | AG140: 330.720764 | AH140: 20.48 | AI140: 2.760001 | AL140: 20 | AM140: 599.096252 | AN140: 9.26 | AO140: 2.74 | AX140: 21.2 | AY140: 273.588013 | AZ140: 19.24 | BA140: 2.74 | BD140: 20.1 | BE140: 283.611755 | BF140: 35.32 | BG140: 2.739998
B141: 19.8 | C141: 280.911 | D141: 12.66 | E141: 2.76 | H141: 21.9 | I141: 228.483749 | J141: 17.68 | K141: 2.76 | N141: 22.1 | O141: 115.382004 | P141: 13.5 | Q141: 2.76 | T141: 19.5 | U141: 343.544739 | V141: 35.52 | W141: 2.760002 | Z141: 19.9 | AA141: 187.547501 | AB141: 24.52 | AC141: 2.76 | AF141: 20.1 | AG141: 333.216248 | AH141: 20.5 | AI141: 2.780001 | AL141: 20 | AM141: 555.699768 | AN141: 9.28 | AO141: 2.76 | AX141: 21.2 | AY141: 275.592255 | AZ141: 19.26 | BA141: 2.76 | BD141: 20.1 | BE141: 285.50174 | BF141: 35.34 | BG141: 2.759998
B142: 19.8 | C142: 282.45 | D142: 12.68 | E142: 2.78 | H142: 21.9 | I142: 229.785248 | J142: 17.700001 | K142: 2.780001 | N142: 22.1 | O142: 116.25975 | P142: 13.52 | Q142: 2.78 | T142: 19.5 | U142: 345.91275 | V142: 35.540001 | W142: 2.780003 | Z142: 19.9 | AA142: 188.782501 | AB142: 24.540001 | AC142: 2.780001 | AF142: 20.1 | AG142: 335.124756 | AH142: 20.52 | AI142: 2.800001 | AL142: 20 | AM142: 544.21051 | AN142: 9.3 | AO142: 2.78 | AX142: 21.2 | AY142: 277.603241 | AZ142: 19.280001 | BA142: 2.780001 | BD142: 20.1 | BE142: 287.752258 | BF142: 35.360001 | BG142: 2.779999
B143: 19.8 | C143: 284.258 | D143: 12.7 | E143: 2.8 | H143: 21.9 | I143: 231.280746 | J143: 17.719999 | K143: 2.799999 | N143: 22.1 | O143: 117.112747 | P143: 13.54 | Q143: 2.8 | T143: 19.5 | U143: 348.459991 | V143: 35.560001 | W143: 2.800003 | Z143: 19.9 | AA143: 190.089249 | AB143: 24.559999 | AC143: 2.799999 | AF143: 20.1 | AG143: 337.606995 | AH143: 20.540001 | AI143: 2.820002 | AL143: 20 | AM143: 535.440002 | AN143: 9.32 | AO143: 2.8 | AX143: 21.2 | AY143: 279.962494 | AZ143: 19.299999 | BA143: 2.799999 | BD143: 20.1 | BE143: 289.30899 | BF143: 35.380001 | BG143: 2.799999
B144: 19.8 | C144: 285.804 | D144: 12.72 | E144: 2.82 | H144: 21.9 | I144: 232.586243 | J144: 17.74 | K144: 2.82 | N144: 22.1 | O144: 117.961998 | P144: 13.56 | Q144: 2.82 | T144: 19.5 | U144: 350.449249 | V144: 35.580002 | W144: 2.820004 | Z144: 19.9 | AA144: 191.732498 | AB144: 24.58 | AC144: 2.82 | AF144: 20.1 | AG144: 339.914764 | AH144: 20.559999 | AI144: 2.84 | AL144: 20 | AM144: 527.799744 | AN144: 9.34 | AO144: 2.82 | AX144: 21.2 | AY144: 281.868256 | AZ144: 19.32 | BA144: 2.82 | BD144: 20.1 | BE144: 291.475006 | BF144: 35.400002 | BG144: 2.82
B145: 19.8 | C145: 287.24 | D145: 12.74 | E145: 2.84 | H145: 21.9 | I145: 234.046005 | J145: 17.76 | K145: 2.84 | N145: 22.1 | O145: 118.82225 | P145: 13.58 | Q145: 2.84 | T145: 19.5 | U145: 352.777252 | V145: 35.599998 | W145: 2.84 | Z145: 19.9 | AA145: 193.187744 | AB145: 24.6 | AC145: 2.84 | AF145: 20.1 | AG145: 342.332764 | AH145: 20.58 | AI145: 2.860001 | AL145: 20 | AM145: 521.986511 | AN145: 9.36 | AO145: 2.84 | AX145: 21.2 | AY145: 284.150513 | AZ145: 19.34 | BA145: 2.84 | BD145: 20.1 | BE145: 293.773254 | BF145: 35.419998 | BG145: 2.839996
B146: 19.8 | C146: 288.932 | D146: 12.76 | E146: 2.86 | H146: 21.9 | I146: 235.160507 | J146: 17.780001 | K146: 2.860001 | N146: 22.1 | O146: 119.529503 | P146: 13.6 | Q146: 2.86 | T146: 19.5 | U146: 354.764496 | V146: 35.619999 | W146: 2.860001 | Z146: 19.9 | AA146: 194.915497 | AB146: 24.620001 | AC146: 2.860001 | AF146: 20.1 | AG146: 344.804993 | AH146: 20.6 | AI146: 2.880001 | AL146: 20 | AM146: 516.40802 | AN146: 9.38 | AO146: 2.86 | AX146: 21.2 | AY146: 286.05426 | AZ146: 19.360001 | BA146: 2.860001 | BD146: 20.1 | BE146: 296.030243 | BF146: 35.439999 | BG146: 2.859997
B147: 19.8 | C147: 290.326 | D147: 12.78 | E147: 2.88 | H147: 21.9 | I147: 236.565002 | J147: 17.799999 | K147: 2.879999 | N147: 22.1 | O147: 120.339249 | P147: 13.62 | Q147: 2.88 | T147: 19.5 | U147: 357.175262 | V147: 35.639999 | W147: 2.880001 | Z147: 19.9 | AA147: 196.219498 | AB147: 24.639999 | AC147: 2.879999 | AF147: 20.1 | AG147: 346.71524 | AH147: 20.620001 | AI147: 2.900002 | AL147: 20 | AM147: 509.635742 | AN147: 9.4 | AO147: 2.88 | AX147: 21.2 | AY147: 288.079987 | AZ147: 19.379999 | BA147: 2.879999 | BD147: 20.1 | BE147: 298.655762 | BF147: 35.459999 | BG147: 2.879997
B148: 19.8 | C148: 292.034 | D148: 12.8 | E148: 2.9 | H148: 21.9 | I148: 238.012756 | J148: 17.82 | K148: 2.9 | N148: 22.1 | O148: 121.1175 | P148: 13.64 | Q148: 2.9 | T148: 19.5 | U148: 359.714264 | V148: 35.66 | W148: 2.900002 | Z148: 19.9 | AA148: 197.671005 | AB148: 24.66 | AC148: 2.9 | AF148: 20.1 | AG148: 349.220245 | AH148: 20.639999 | AI148: 2.92 | AL148: 20 | AM148: 502.826996 | AN148: 9.42 | AO148: 2.9 | AX148: 21.2 | AY148: 290.269257 | AZ148: 19.4 | BA148: 2.9 | BD148: 20.1 | BE148: 300.641998 | BF148: 35.48 | BG148: 2.899998
B149: 19.8 | C149: 293.413 | D149: 12.82 | E149: 2.92 | H149: 21.9 | I149: 239.348755 | J149: 17.84 | K149: 2.92 | N149: 22.1 | O149: 122.024246 | P149: 13.66 | Q149: 2.92 | T149: 19.5 | U149: 361.626007 | V149: 35.68 | W149: 2.920002 | Z149: 19.9 | AA149: 199.319504 | AB149: 24.68 | AC149: 2.92 | AF149: 20.1 | AG149: 351.37326 | AH149: 20.66 | AI149: 2.940001 | AL149: 20 | AM149: 496.375244 | AN149: 9.44 | AO149: 2.92 | AX149: 21.2 | AY149: 292.137238 | AZ149: 19.42 | BA149: 2.92 | BD149: 20.1 | BE149: 303.348511 | BF149: 35.5 | BG149: 2.919998
B150: 19.8 | C150: 294.782 | D150: 12.84 | E150: 2.94 | H150: 21.9 | I150: 240.842255 | J150: 17.860001 | K150: 2.940001 | N150: 22.1 | O150: 122.83075 | P150: 13.68 | Q150: 2.94 | T150: 19.5 | U150: 364.00351 | V150: 35.700001 | W150: 2.940003 | Z150: 19.9 | AA150: 200.865997 | AB150: 24.700001 | AC150: 2.940001 | AF150: 20.1 | AG150: 353.819489 | AH150: 20.68 | AI150: 2.960001 | AL150: 20 | AM150: 490.940491 | AN150: 9.46 | AO150: 2.94 | AX150: 21.2 | AY150: 294.232513 | AZ150: 19.440001 | BA150: 2.940001 | BD150: 20.1 | BE150: 305.852753 | BF150: 35.52 | BG150: 2.939998
B151: 19.8 | C151: 296.448 | D151: 12.86 | E151: 2.96 | H151: 21.9 | I151: 241.943756 | J151: 17.879999 | K151: 2.959999 | N151: 22.1 | O151: 123.509499 | P151: 13.7 | Q151: 2.96 | T151: 19.5 | U151: 365.934509 | V151: 35.720001 | W151: 2.960003 | Z151: 19.9 | AA151: 202.610748 | AB151: 24.719999 | AC151: 2.959999 | AF151: 20.1 | AG151: 356.221497 | AH151: 20.700001 | AI151: 2.980002 | AL151: 20 | AM151: 485.776489 | AN151: 9.48 | AO151: 2.96 | AX151: 21.2 | AY151: 295.989502 | AZ151: 19.459999 | BA151: 2.959999 | BD151: 20.1 | BE151: 308.429749 | BF151: 35.540001 | BG151: 2.959999
B152: 19.8 | C152: 297.825 | D152: 12.88 | E152: 2.98 | H152: 21.9 | I152: 243.438248 | J152: 17.9 | K152: 2.98 | N152: 22.1 | O152: 124.374001 | P152: 13.72 | Q152: 2.98 | T152: 19.5 | U152: 368.355988 | V152: 35.740002 | W152: 2.980004 | Z152: 19.9 | AA152: 203.991257 | AB152: 24.74 | AC152: 2.98 | AF152: 20.1 | AG152: 358.180756 | AH152: 20.719999 | AI152: 3 | AL152: 20 | AM152: 481.118988 | AN152: 9.5 | AO152: 2.98 | AX152: 21.2 | AY152: 298.058746 | AZ152: 19.48 | BA152: 2.98 | BD152: 20.1 | BE152: 311.115509 | BF152: 35.560001 | BG152: 2.979999
B153: 19.8 | C153: 299.545 | D153: 12.9 | E153: 3 | H153: 21.9 | I153: 244.914001 | J153: 17.92 | K153: 3 | N153: 22.1 | O153: 125.15625 | P153: 13.74 | Q153: 3 | T153: 19.5 | U153: 370.837738 | V153: 35.759998 | W153: 3 | Z153: 19.9 | AA153: 205.695496 | AB153: 24.76 | AC153: 3 | AF153: 20.1 | AG153: 360.634491 | AH153: 20.74 | AI153: 3.020001 | AL153: 20 | AM153: 477.89151 | AN153: 9.52 | AO153: 3 | AX153: 21.2 | AY153: 300.228241 | AZ153: 19.5 | BA153: 3 | BD153: 20.1 | BE153: 313.256989 | BF153: 35.580002 | BG153: 3
B154: 19.8 | C154: 300.86 | D154: 12.92 | E154: 3.02 | H154: 21.9 | I154: 246.419006 | J154: 17.940001 | K154: 3.020001 | N154: 22.1 | O154: 126.03125 | P154: 13.76 | Q154: 3.02 | T154: 19.5 | U154: 372.747498 | V154: 35.779999 | W154: 3.020001 | Z154: 19.9 | AA154: 207.469498 | AB154: 24.780001 | AC154: 3.020001 | AF154: 20.1 | AG154: 362.764496 | AH154: 20.76 | AI154: 3.040001 | AL154: 20 | AM154: 475.508759 | AN154: 9.54 | AO154: 3.02 | AX154: 21.2 | AY154: 302.232513 | AZ154: 19.52 | BA154: 3.02 | BD154: 20.1 | BE154: 316.136749 | BF154: 35.599998 | BG154: 3.019996
B155: 19.8 | C155: 302.217 | D155: 12.94 | E155: 3.04 | H155: 21.9 | I155: 247.925995 | J155: 17.959999 | K155: 3.039999 | N155: 22.1 | O155: 126.848 | P155: 13.78 | Q155: 3.04 | T155: 19.5 | U155: 375.044495 | V155: 35.799999 | W155: 3.040001 | Z155: 19.9 | AA155: 209.036743 | AB155: 24.799999 | AC155: 3.039999 | AF155: 20.1 | AG155: 365.245758 | AH155: 20.780001 | AI155: 3.060002 | AL155: 20 | AM155: 473.692261 | AN155: 9.56 | AO155: 3.04 | AX155: 21.2 | AY155: 304.308258 | AZ155: 19.540001 | BA155: 3.040001 | BD155: 20.1 | BE155: 318.678253 | BF155: 35.619999 | BG155: 3.039997
B156: 19.8 | C156: 303.751 | D156: 12.96 | E156: 3.06 | H156: 21.9 | I156: 249.048996 | J156: 17.98 | K156: 3.06 | N156: 22.1 | O156: 127.566254 | P156: 13.8 | Q156: 3.06 | T156: 19.5 | U156: 376.901001 | V156: 35.82 | W156: 3.060002 | Z156: 19.9 | AA156: 210.956757 | AB156: 24.82 | AC156: 3.06 | AF156: 20.1 | AG156: 367.577515 | AH156: 20.799999 | AI156: 3.08 | AL156: 20 | AM156: 471.857513 | AN156: 9.58 | AO156: 3.06 | AX156: 21.2 | AY156: 305.937988 | AZ156: 19.559999 | BA156: 3.059999 | BD156: 20.1 | BE156: 321.492493 | BF156: 35.639999 | BG156: 3.059997
B157: 19.8 | C157: 305.082 | D157: 12.98 | E157: 3.08 | H157: 21.9 | I157: 250.634003 | J157: 18 | K157: 3.08 | N157: 22.1 | O157: 128.431 | P157: 13.82 | Q157: 3.08 | T157: 19.5 | U157: 379.378235 | V157: 35.84 | W157: 3.080002 | Z157: 19.9 | AA157: 212.363251 | AB157: 24.84 | AC157: 3.08 | AF157: 20.1 | AG157: 369.599762 | AH157: 20.82 | AI157: 3.100001 | AL157: 20 | AM157: 470.139008 | AN157: 9.6 | AO157: 3.08 | AX157: 21.2 | AY157: 307.997742 | AZ157: 19.58 | BA157: 3.08 | BD157: 20.1 | BE157: 324.225494 | BF157: 35.66 | BG157: 3.079998
B158: 19.8 | C158: 306.632 | D158: 13 | E158: 3.1 | H158: 21.9 | I158: 252.063507 | J158: 18.02 | K158: 3.1 | N158: 22.1 | O158: 129.202499 | P158: 13.84 | Q158: 3.1 | T158: 19.5 | U158: 381.716003 | V158: 35.860001 | W158: 3.100003 | Z158: 19.9 | AA158: 214.175003 | AB158: 24.860001 | AC158: 3.100001 | AF158: 20.1 | AG158: 372.11499 | AH158: 20.84 | AI158: 3.120001 | AL158: 20 | AM158: 468.511261 | AN158: 9.62 | AO158: 3.1 | AX158: 21.2 | AY158: 310.024994 | AZ158: 19.6 | BA158: 3.1 | BD158: 20.1 | BE158: 326.530243 | BF158: 35.68 | BG158: 3.099998
B159: 19.8 | C159: 307.732 | D159: 13.02 | E159: 3.12 | H159: 21.9 | I159: 253.541504 | J159: 18.040001 | K159: 3.120001 | N159: 22.1 | O159: 130.083755 | P159: 13.86 | Q159: 3.12 | T159: 19.5 | U159: 383.690002 | V159: 35.880001 | W159: 3.120003 | Z159: 19.9 | AA159: 215.975494 | AB159: 24.879999 | AC159: 3.119999 | AF159: 20.1 | AG159: 374.1315 | AH159: 20.860001 | AI159: 3.140002 | AL159: 20 | AM159: 467.02124 | AN159: 9.64 | AO159: 3.12 | AX159: 21.2 | AY159: 312.049011 | AZ159: 19.620001 | BA159: 3.120001 | BD159: 20.1 | BE159: 329.344513 | BF159: 35.700001 | BG159: 3.119999
B160: 19.8 | C160: 309.076 | D160: 13.04 | E160: 3.14 | H160: 21.9 | I160: 255.050247 | J160: 18.059999 | K160: 3.139999 | N160: 22.1 | O160: 130.83725 | P160: 13.88 | Q160: 3.14 | T160: 19.5 | U160: 385.999237 | V160: 35.900002 | W160: 3.140004 | Z160: 19.9 | AA160: 217.684494 | AB160: 24.9 | AC160: 3.14 | AF160: 20.1 | AG160: 376.604004 | AH160: 20.879999 | AI160: 3.16 | AL160: 20 | AM160: 465.22876 | AN160: 9.66 | AO160: 3.14 | AX160: 21.2 | AY160: 314.071014 | AZ160: 19.639999 | BA160: 3.139999 | BD160: 20.1 | BE160: 331.810486 | BF160: 35.720001 | BG160: 3.139999
B161: 19.8 | C161: 310.516 | D161: 13.06 | E161: 3.16 | H161: 21.9 | I161: 256.161743 | J161: 18.08 | K161: 3.16 | N161: 22.1 | O161: 131.5495 | P161: 13.9 | Q161: 3.16 | T161: 19.5 | U161: 387.911255 | V161: 35.919998 | W161: 3.16 | Z161: 19.9 | AA161: 219.578247 | AB161: 24.92 | AC161: 3.16 | AF161: 20.1 | AG161: 378.847748 | AH161: 20.9 | AI161: 3.180001 | AL161: 20 | AM161: 462.817749 | AN161: 9.68 | AO161: 3.16 | AX161: 21.2 | AY161: 315.587738 | AZ161: 19.66 | BA161: 3.16 | BD161: 20.1 | BE161: 334.801758 | BF161: 35.740002 | BG161: 3.16
B162: 19.8 | C162: 311.919 | D162: 13.08 | E162: 3.18 | H162: 21.9 | I162: 257.731506 | J162: 18.1 | K162: 3.18 | N162: 22.1 | O162: 132.435501 | P162: 13.92 | Q162: 3.18 | T162: 19.5 | U162: 390.396759 | V162: 35.939999 | W162: 3.180001 | Z162: 19.9 | AA162: 220.955002 | AB162: 24.940001 | AC162: 3.180001 | AF162: 20.1 | AG162: 380.890259 | AH162: 20.92 | AI162: 3.200001 | AL162: 20 | AM162: 460.446503 | AN162: 9.7 | AO162: 3.18 | AX162: 21.2 | AY162: 317.627502 | AZ162: 19.68 | BA162: 3.18 | BD162: 20.1 | BE162: 337.624237 | BF162: 35.759998 | BG162: 3.179996
B163: 19.8 | C163: 313.427 | D163: 13.1 | E163: 3.2 | H163: 21.9 | I163: 259.136261 | J163: 18.120001 | K163: 3.200001 | N163: 22.1 | O163: 133.214493 | P163: 13.94 | Q163: 3.2 | T163: 19.5 | U163: 392.664764 | V163: 35.959999 | W163: 3.200001 | Z163: 19.9 | AA163: 222.729996 | AB163: 24.959999 | AC163: 3.199999 | AF163: 20.1 | AG163: 383.260742 | AH163: 20.940001 | AI163: 3.220002 | AL163: 20 | AM163: 458.442261 | AN163: 9.72 | AO163: 3.2 | AX163: 21.2 | AY163: 319.585236 | AZ163: 19.700001 | BA163: 3.200001 | BD163: 20.1 | BE163: 340.028015 | BF163: 35.779999 | BG163: 3.199997
B164: 19.8 | C164: 314.47 | D164: 13.12 | E164: 3.22 | H164: 21.9 | I164: 260.702759 | J164: 18.139999 | K164: 3.219999 | N164: 22.1 | O164: 134.068497 | P164: 13.96 | Q164: 3.22 | T164: 19.5 | U164: 394.658508 | V164: 35.98 | W164: 3.220002 | Z164: 19.9 | AA164: 224.412247 | AB164: 24.98 | AC164: 3.22 | AF164: 20.1 | AG164: 385.190002 | AH164: 20.959999 | AI164: 3.24 | AL164: 20 | AM164: 456.691254 | AN164: 9.74 | AO164: 3.22 | AX164: 21.2 | AY164: 321.696503 | AZ164: 19.719999 | BA164: 3.219999 | BD164: 20.1 | BE164: 343.10376 | BF164: 35.799999 | BG164: 3.219997
B165: 19.8 | C165: 315.928 | D165: 13.14 | E165: 3.24 | H165: 21.9 | I165: 262.114258 | J165: 18.16 | K165: 3.24 | N165: 22.1 | O165: 134.852249 | P165: 13.98 | Q165: 3.24 | T165: 19.5 | U165: 396.89151 | V165: 36 | W165: 3.240002 | Z165: 19.9 | AA165: 226.202499 | AB165: 25 | AC165: 3.24 | AF165: 20.1 | AG165: 387.66925 | AH165: 20.98 | AI165: 3.260001 | AL165: 20 | AM165: 454.948761 | AN165: 9.76 | AO165: 3.24 | AX165: 21.2 | AY165: 323.696503 | AZ165: 19.74 | BA165: 3.24 | BD165: 20.1 | BE165: 345.717255 | BF165: 35.82 | BG165: 3.239998
B166: 19.8 | C166: 317.283 | D166: 13.16 | E166: 3.26 | H166: 21.9 | I166: 263.313751 | J166: 18.18 | K166: 3.26 | N166: 22.1 | O166: 135.591507 | P166: 14 | Q166: 3.26 | T166: 19.5 | U166: 398.759735 | V166: 36.02 | W166: 3.260002 | Z166: 19.9 | AA166: 228.070999 | AB166: 25.02 | AC166: 3.26 | AF166: 20.1 | AG166: 389.763 | AH166: 21 | AI166: 3.280001 | AL166: 20 | AM166: 452.868256 | AN166: 9.78 | AO166: 3.26 | AX166: 21.2 | AY166: 325.221985 | AZ166: 19.76 | BA166: 3.26 | BD166: 20.1 | BE166: 348.741486 | BF166: 35.84 | BG166: 3.259998
B167: 19.8 | C167: 318.551 | D167: 13.18 | E167: 3.28 | H167: 21.9 | I167: 264.880737 | J167: 18.200001 | K167: 3.280001 | N167: 22.1 | O167: 136.490753 | P167: 14.02 | Q167: 3.28 | T167: 19.5 | U167: 401.207489 | V167: 36.040001 | W167: 3.280003 | Z167: 19.9 | AA167: 229.400497 | AB167: 25.040001 | AC167: 3.280001 | AF167: 20.1 | AG167: 391.799011 | AH167: 21.02 | AI167: 3.300001 | AL167: 20 | AM167: 451.014496 | AN167: 9.8 | AO167: 3.28 | AX167: 21.2 | AY167: 327.341492 | AZ167: 19.780001 | BA167: 3.280001 | BD167: 20.1 | BE167: 351.569489 | BF167: 35.860001 | BG167: 3.279999
B168: 19.8 | C168: 319.94 | D168: 13.2 | E168: 3.3 | H168: 21.9 | I168: 266.172241 | J168: 18.219999 | K168: 3.299999 | N168: 22.1 | O168: 137.253754 | P168: 14.04 | Q168: 3.3 | T168: 19.5 | U168: 403.256256 | V168: 36.060001 | W168: 3.300003 | Z168: 19.9 | AA168: 231.175003 | AB168: 25.059999 | AC168: 3.299999 | AF168: 20.1 | AG168: 394.042236 | AH168: 21.040001 | AI168: 3.320002 | AL168: 20 | AM168: 449.406494 | AN168: 9.82 | AO168: 3.3 | AX168: 21.2 | AY168: 329.288513 | AZ168: 19.799999 | BA168: 3.299999 | BD168: 20.1 | BE168: 354.181 | BF168: 35.880001 | BG168: 3.299999
B169: 19.8 | C169: 320.823 | D169: 13.22 | E169: 3.32 | H169: 21.9 | I169: 267.763 | J169: 18.24 | K169: 3.32 | N169: 22.1 | O169: 138.085251 | P169: 14.06 | Q169: 3.32 | T169: 19.5 | U169: 405.299011 | V169: 36.080002 | W169: 3.320004 | Z169: 19.9 | AA169: 232.839996 | AB169: 25.08 | AC169: 3.32 | AF169: 20.1 | AG169: 395.988251 | AH169: 21.059999 | AI169: 3.34 | AL169: 20 | AM169: 447.399506 | AN169: 9.84 | AO169: 3.32 | AX169: 21.2 | AY169: 331.309265 | AZ169: 19.82 | BA169: 3.32 | BD169: 20.1 | BE169: 357.39975 | BF169: 35.900002 | BG169: 3.32
B170: 19.8 | C170: 322.156 | D170: 13.24 | E170: 3.34 | H170: 21.9 | I170: 269.170013 | J170: 18.26 | K170: 3.34 | N170: 22.1 | O170: 138.785507 | P170: 14.08 | Q170: 3.34 | T170: 19.5 | U170: 407.435242 | V170: 36.099998 | W170: 3.34 | Z170: 19.9 | AA170: 234.662247 | AB170: 25.1 | AC170: 3.34 | AF170: 20.1 | AG170: 398.451752 | AH170: 21.08 | AI170: 3.360001 | AL170: 20 | AM170: 445.308014 | AN170: 9.86 | AO170: 3.34 | AX170: 21.2 | AY170: 333.145996 | AZ170: 19.84 | BA170: 3.34 | BD170: 20.1 | BE170: 360.1185 | BF170: 35.919998 | BG170: 3.339996
B171: 19.8 | C171: 323.405 | D171: 13.26 | E171: 3.36 | H171: 21.9 | I171: 270.345764 | J171: 18.280001 | K171: 3.360001 | N171: 22.1 | O171: 139.546249 | P171: 14.1 | Q171: 3.36 | T171: 19.5 | U171: 409.339264 | V171: 36.119999 | W171: 3.360001 | Z171: 19.9 | AA171: 236.469254 | AB171: 25.120001 | AC171: 3.360001 | AF171: 20.1 | AG171: 400.447998 | AH171: 21.1 | AI171: 3.380001 | AL171: 20 | AM171: 443.338745 | AN171: 9.88 | AO171: 3.36 | AX171: 21.2 | AY171: 334.68576 | AZ171: 19.860001 | BA171: 3.360001 | BD171: 20.1 | BE171: 363.160736 | BF171: 35.939999 | BG171: 3.359997
B172: 19.8 | C172: 324.672 | D172: 13.28 | E172: 3.38 | H172: 21.9 | I172: 271.929749 | J172: 18.299999 | K172: 3.379999 | N172: 22.1 | O172: 140.40625 | P172: 14.12 | Q172: 3.38 | T172: 19.5 | U172: 411.779755 | V172: 36.139999 | W172: 3.380001 | Z172: 19.9 | AA172: 237.889496 | AB172: 25.139999 | AC172: 3.379999 | AF172: 20.1 | AG172: 402.500488 | AH172: 21.120001 | AI172: 3.400002 | AL172: 20 | AM172: 441.53476 | AN172: 9.9 | AO172: 3.38 | AX172: 21.2 | AY172: 336.734985 | AZ172: 19.879999 | BA172: 3.379999 | BD172: 20.1 | BE172: 365.998505 | BF172: 35.959999 | BG172: 3.379997
B173: 19.8 | C173: 325.956 | D173: 13.3 | E173: 3.4 | H173: 21.9 | I173: 273.259735 | J173: 18.32 | K173: 3.4 | N173: 22.1 | O173: 141.162003 | P173: 14.14 | Q173: 3.4 | T173: 19.5 | U173: 413.72876 | V173: 36.16 | W173: 3.400002 | Z173: 19.9 | AA173: 239.688004 | AB173: 25.16 | AC173: 3.4 | AF173: 20.1 | AG173: 404.660248 | AH173: 21.139999 | AI173: 3.42 | AL173: 20 | AM173: 439.721741 | AN173: 9.92 | AO173: 3.4 | AX173: 21.2 | AY173: 338.550751 | AZ173: 19.9 | BA173: 3.4 | BD173: 20.2 | BE173: 368.748993 | BF173: 35.98 | BG173: 3.399998
B174: 19.8 | C174: 326.839 | D174: 13.32 | E174: 3.42 | H174: 21.9 | I174: 274.843262 | J174: 18.34 | K174: 3.42 | N174: 22.1 | O174: 141.968994 | P174: 14.16 | Q174: 3.42 | T174: 19.5 | U174: 415.808014 | V174: 36.18 | W174: 3.420002 | Z174: 19.9 | AA174: 241.289001 | AB174: 25.18 | AC174: 3.42 | AF174: 20.1 | AG174: 406.670013 | AH174: 21.16 | AI174: 3.440001 | AL174: 20 | AM174: 437.636749 | AN174: 9.94 | AO174: 3.42 | AX174: 21.2 | AY174: 340.592255 | AZ174: 19.92 | BA174: 3.42 | BD174: 20.2 | BE174: 371.81076 | BF174: 36 | BG174: 3.419998
B175: 19.8 | C175: 328.281 | D175: 13.34 | E175: 3.44 | H175: 21.9 | I175: 276.29425 | J175: 18.360001 | K175: 3.440001 | N175: 22.1 | O175: 142.709244 | P175: 14.18 | Q175: 3.44 | T175: 19.5 | U175: 417.894257 | V175: 36.200001 | W175: 3.440003 | Z175: 19.9 | AA175: 243.167252 | AB175: 25.200001 | AC175: 3.440001 | AF175: 20.1 | AG175: 408.967499 | AH175: 21.18 | AI175: 3.460001 | AL175: 20 | AM175: 435.427002 | AN175: 9.96 | AO175: 3.44 | AX175: 21.2 | AY175: 342.381012 | AZ175: 19.940001 | BA175: 3.440001 | BD175: 20.2 | BE175: 374.516754 | BF175: 36.02 | BG175: 3.439998
B176: 19.8 | C176: 329.424 | D176: 13.36 | E176: 3.46 | H176: 21.9 | I176: 277.614014 | J176: 18.379999 | K176: 3.459999 | N176: 22.1 | O176: 143.438751 | P176: 14.2 | Q176: 3.46 | T176: 19.5 | U176: 419.811005 | V176: 36.220001 | W176: 3.460003 | Z176: 19.9 | AA176: 244.867996 | AB176: 25.219999 | AC176: 3.459999 | AF176: 20.1 | AG176: 410.924011 | AH176: 21.200001 | AI176: 3.480002 | AL176: 20 | AM176: 433.528259 | AN176: 9.98 | AO176: 3.46 | AX176: 21.2 | AY176: 343.986237 | AZ176: 19.959999 | BA176: 3.459999 | BD176: 20.2 | BE176: 377.58374 | BF176: 36.040001 | BG176: 3.459999
B177: 19.8 | C177: 330.709 | D177: 13.38 | E177: 3.48 | H177: 21.9 | I177: 279.208496 | J177: 18.4 | K177: 3.48 | N177: 22.1 | O177: 144.270248 | P177: 14.22 | Q177: 3.48 | T177: 19.5 | U177: 422.208252 | V177: 36.240002 | W177: 3.480004 | Z177: 19.9 | AA177: 246.304245 | AB177: 25.24 | AC177: 3.48 | AF177: 20.1 | AG177: 413.044739 | AH177: 21.219999 | AI177: 3.5 | AL177: 20 | AM177: 431.649506 | AN177: 10 | AO177: 3.48 | AX177: 21.2 | AY177: 346.043488 | AZ177: 19.98 | BA177: 3.48 | BD177: 20.2 | BE177: 380.133759 | BF177: 36.060001 | BG177: 3.479999
B178: 19.8 | C178: 332.04 | D178: 13.4 | E178: 3.5 | H178: 21.9 | I178: 280.523743 | J178: 18.42 | K178: 3.5 | N178: 22.1 | O178: 145.046005 | P178: 14.24 | Q178: 3.5 | T178: 19.5 | U178: 423.967743 | V178: 36.259998 | W178: 3.5 | Z178: 19.9 | AA178: 248.118744 | AB178: 25.26 | AC178: 3.5 | AF178: 20.1 | AG178: 415.178741 | AH178: 21.24 | AI178: 3.520001 | AL178: 20 | AM178: 429.51825 | AN178: 10.02 | AO178: 3.5 | AX178: 21.2 | AY178: 347.761749 | AZ178: 20 | BA178: 3.5 | BD178: 20.2 | BE178: 382.971985 | BF178: 36.080002 | BG178: 3.5
B179: 19.8 | C179: 333.009 | D179: 13.42 | E179: 3.52 | H179: 21.9 | I179: 282.052246 | J179: 18.440001 | K179: 3.520001 | N179: 22.1 | O179: 145.853256 | P179: 14.26 | Q179: 3.52 | T179: 19.5 | U179: 426.100739 | V179: 36.279999 | W179: 3.520001 | Z179: 19.9 | AA179: 249.657501 | AB179: 25.280001 | AC179: 3.520001 | AF179: 20.1 | AG179: 417.208008 | AH179: 21.26 | AI179: 3.540001 | AL179: 20 | AM179: 427.422241 | AN179: 10.04 | AO179: 3.52 | AX179: 21.2 | AY179: 349.774261 | AZ179: 20.02 | BA179: 3.52 | BD179: 20.2 | BE179: 386.050751 | BF179: 36.099998 | BG179: 3.519996
B180: 19.8 | C180: 334.446 | D180: 13.44 | E180: 3.54 | H180: 21.9 | I180: 283.341248 | J180: 18.459999 | K180: 3.539999 | N180: 22.1 | O180: 146.499756 | P180: 14.28 | Q180: 3.54 | T180: 19.5 | U180: 428.052765 | V180: 36.299999 | W180: 3.540001 | Z180: 19.9 | AA180: 251.610992 | AB180: 25.299999 | AC180: 3.539999 | AF180: 20.1 | AG180: 419.506256 | AH180: 21.280001 | AI180: 3.560002 | AL180: 20 | AM180: 424.248993 | AN180: 10.06 | AO180: 3.54 | AX180: 21.2 | AY180: 351.58075 | AZ180: 20.040001 | BA180: 3.540001 | BD180: 20.2 | BE180: 388.784241 | BF180: 36.119999 | BG180: 3.539997
B181: 19.8 | C181: 335.634 | D181: 13.46 | E181: 3.56 | H181: 21.9 | I181: 284.697754 | J181: 18.48 | K181: 3.56 | N181: 22.1 | O181: 147.272003 | P181: 14.3 | Q181: 3.56 | T181: 19.5 | U181: 430.010742 | V181: 36.32 | W181: 3.560002 | Z181: 19.9 | AA181: 253.397751 | AB181: 25.32 | AC181: 3.56 | AF181: 20.1 | AG181: 421.386505 | AH181: 21.299999 | AI181: 3.58 | AL181: 20 | AM181: 420.503235 | AN181: 10.08 | AO181: 3.56 | AX181: 21.2 | AY181: 353.177765 | AZ181: 20.059999 | BA181: 3.559999 | BD181: 20.2 | BE181: 391.867737 | BF181: 36.139999 | BG181: 3.559997
B182: 19.8 | C182: 337.029 | D182: 13.48 | E182: 3.58 | H182: 21.9 | I182: 286.160492 | J182: 18.5 | K182: 3.58 | N182: 22.1 | O182: 148.10675 | P182: 14.32 | Q182: 3.58 | T182: 19.5 | U182: 432.390991 | V182: 36.34 | W182: 3.580002 | Z182: 19.9 | AA182: 254.877747 | AB182: 25.34 | AC182: 3.58 | AF182: 20.1 | AG182: 423.584015 | AH182: 21.32 | AI182: 3.600001 | AL182: 20 | AM182: 415.690247 | AN182: 10.1 | AO182: 3.58 | AX182: 21.2 | AY182: 355.076996 | AZ182: 20.08 | BA182: 3.58 | BD182: 20.2 | BE182: 394.309265 | BF182: 36.16 | BG182: 3.579998
B183: 19.8 | C183: 338.281 | D183: 13.5 | E183: 3.6 | H183: 21.9 | I183: 287.463501 | J183: 18.52 | K183: 3.6 | N183: 22.1 | O183: 148.858749 | P183: 14.34 | Q183: 3.6 | T183: 19.5 | U183: 434.124237 | V183: 36.360001 | W183: 3.600003 | Z183: 19.9 | AA183: 256.74176 | AB183: 25.360001 | AC183: 3.600001 | AF183: 20.1 | AG183: 425.696991 | AH183: 21.34 | AI183: 3.620001 | AL183: 20 | AM183: 410.288239 | AN183: 10.12 | AO183: 3.6 | AX183: 21.2 | AY183: 356.748505 | AZ183: 20.1 | BA183: 3.6 | BD183: 20.2 | BE183: 397.20874 | BF183: 36.18 | BG183: 3.599998
B184: 19.8 | C184: 339.352 | D184: 13.52 | E184: 3.62 | H184: 21.9 | I184: 289.039246 | J184: 18.540001 | K184: 3.620001 | N184: 22.1 | O184: 149.653 | P184: 14.36 | Q184: 3.62 | T184: 19.5 | U184: 436.244751 | V184: 36.380001 | W184: 3.620003 | Z184: 19.9 | AA184: 258.283752 | AB184: 25.379999 | AC184: 3.619999 | AF184: 20.1 | AG184: 427.688507 | AH184: 21.360001 | AI184: 3.640002 | AL184: 20 | AM184: 403.490265 | AN184: 10.14 | AO184: 3.62 | AX184: 21.2 | AY184: 358.70401 | AZ184: 20.120001 | BA184: 3.620001 | BD184: 20.2 | BE184: 400.192993 | BF184: 36.200001 | BG184: 3.619999
B185: 19.8 | C185: 340.805 | D185: 13.54 | E185: 3.64 | H185: 21.9 | I185: 290.309998 | J185: 18.559999 | K185: 3.639999 | N185: 22.1 | O185: 150.240005 | P185: 14.38 | Q185: 3.64 | T185: 19.5 | U185: 438.163239 | V185: 36.400002 | W185: 3.640004 | Z185: 19.9 | AA185: 260.207245 | AB185: 25.4 | AC185: 3.64 | AF185: 20.1 | AG185: 429.941254 | AH185: 21.379999 | AI185: 3.66 | AL185: 20 | AM185: 398.032745 | AN185: 10.16 | AO185: 3.64 | AX185: 21.2 | AY185: 360.458008 | AZ185: 20.139999 | BA185: 3.639999 | BD185: 20.2 | BE185: 402.881256 | BF185: 36.220001 | BG185: 3.639999
B186: 19.8 | C186: 341.904 | D186: 13.56 | E186: 3.66 | H186: 21.9 | I186: 291.692505 | J186: 18.58 | K186: 3.66 | N186: 22.1 | O186: 151.093994 | P186: 14.4 | Q186: 3.66 | T186: 19.5 | U186: 440.147736 | V186: 36.419998 | W186: 3.66 | Z186: 19.9 | AA186: 261.938751 | AB186: 25.42 | AC186: 3.66 | AF186: 20.1 | AG186: 431.652008 | AH186: 21.4 | AI186: 3.680001 | AL186: 20 | AM186: 395.282257 | AN186: 10.18 | AO186: 3.66 | AX186: 21.2 | AY186: 362.105255 | AZ186: 20.16 | BA186: 3.66 | BD186: 20.2 | BE186: 405.865997 | BF186: 36.240002 | BG186: 3.66
B187: 19.8 | C187: 343.245 | D187: 13.58 | E187: 3.68 | H187: 21.9 | I187: 293.186249 | J187: 18.6 | K187: 3.68 | N187: 22.1 | O187: 151.860245 | P187: 14.42 | Q187: 3.68 | T187: 19.5 | U187: 442.426758 | V187: 36.439999 | W187: 3.680001 | Z187: 19.9 | AA187: 263.348511 | AB187: 25.440001 | AC187: 3.680001 | AF187: 20.1 | AG187: 433.813995 | AH187: 21.42 | AI187: 3.700001 | AL187: 20 | AM187: 393.759491 | AN187: 10.2 | AO187: 3.68 | AX187: 21.2 | AY187: 365.84375 | AZ187: 20.200001 | BA187: 3.700001 | BD187: 20.2 | BE187: 408.232239 | BF187: 36.259998 | BG187: 3.679996
B188: 19.8 | C188: 344.472 | D188: 13.6 | E188: 3.7 | H188: 21.9 | I188: 294.568237 | J188: 18.620001 | K188: 3.700001 | N188: 22.1 | O188: 152.580246 | P188: 14.44 | Q188: 3.7 | T188: 19.5 | U188: 444.096252 | V188: 36.459999 | W188: 3.700001 | Z188: 19.9 | AA188: 265.22525 | AB188: 25.459999 | AC188: 3.699999 | AF188: 20.1 | AG188: 435.846741 | AH188: 21.440001 | AI188: 3.720002 | AL188: 20 | AM188: 392.586761 | AN188: 10.22 | AO188: 3.7 | AX188: 21.2 | AY188: 367.863739 | AZ188: 20.219999 | BA188: 3.719999 | BD188: 20.2 | BE188: 411.121246 | BF188: 36.279999 | BG188: 3.699997
B189: 19.8 | C189: 345.381 | D189: 13.62 | E189: 3.72 | H189: 21.9 | I189: 296.10376 | J189: 18.639999 | K189: 3.719999 | N189: 22.1 | O189: 153.347 | P189: 14.46 | Q189: 3.72 | T189: 19.5 | U189: 446.268738 | V189: 36.48 | W189: 3.720002 | Z189: 19.9 | AA189: 266.8255 | AB189: 25.48 | AC189: 3.72 | AF189: 20.1 | AG189: 437.893738 | AH189: 21.459999 | AI189: 3.74 | AL189: 20 | AM189: 391.185242 | AN189: 10.24 | AO189: 3.72 | AX189: 21.2 | AY189: 369.489502 | AZ189: 20.24 | BA189: 3.74 | BD189: 20.2 | BE189: 414.109741 | BF189: 36.299999 | BG189: 3.719997
B190: 19.8 | C190: 346.549 | D190: 13.64 | E190: 3.74 | H190: 21.9 | I190: 297.275757 | J190: 18.66 | K190: 3.74 | N190: 22.1 | O190: 153.902252 | P190: 14.48 | Q190: 3.74 | T190: 19.5 | U190: 447.986755 | V190: 36.5 | W190: 3.740002 | Z190: 19.9 | AA190: 268.778748 | AB190: 25.5 | AC190: 3.74 | AF190: 20.1 | AG190: 440.114502 | AH190: 21.48 | AI190: 3.760001 | AL190: 20 | AM190: 389.279999 | AN190: 10.26 | AO190: 3.74 | AX190: 21.2 | AY190: 371.234985 | AZ190: 20.26 | BA190: 3.76 | BD190: 20.2 | BE190: 416.872986 | BF190: 36.32 | BG190: 3.739998
B191: 19.8 | C191: 347.454 | D191: 13.66 | E191: 3.76 | H191: 21.9 | I191: 298.708496 | J191: 18.68 | K191: 3.76 | N191: 22.1 | O191: 154.709 | P191: 14.5 | Q191: 3.76 | T191: 19.5 | U191: 450.129761 | V191: 36.52 | W191: 3.760002 | Z191: 19.9 | AA191: 270.341492 | AB191: 25.52 | AC191: 3.76 | AF191: 20.1 | AG191: 441.770996 | AH191: 21.5 | AI191: 3.780001 | AL191: 20 | AM191: 387.263489 | AN191: 10.28 | AO191: 3.76 | AX191: 21.2 | AY191: 373.166504 | AZ191: 20.280001 | BA191: 3.780001 | BD191: 20.2 | BE191: 419.786743 | BF191: 36.34 | BG191: 3.759998
B192: 19.8 | C192: 348.531 | D192: 13.68 | E192: 3.78 | H192: 21.9 | I192: 300.134247 | J192: 18.700001 | K192: 3.780001 | N192: 22.1 | O192: 155.414246 | P192: 14.52 | Q192: 3.78 | T192: 19.5 | U192: 452.428009 | V192: 36.540001 | W192: 3.780003 | Z192: 19.9 | AA192: 271.986237 | AB192: 25.540001 | AC192: 3.780001 | AF192: 20.1 | AG192: 443.911499 | AH192: 21.52 | AI192: 3.800001 | AL192: 20 | AM192: 385.70575 | AN192: 10.3 | AO192: 3.78 | AX192: 21.2 | AY192: 374.85025 | AZ192: 20.299999 | BA192: 3.799999 | BD192: 20.2 | BE192: 422.192993 | BF192: 36.360001 | BG192: 3.779999
B193: 19.8 | C193: 349.221 | D193: 13.7 | E193: 3.8 | H193: 21.9 | I193: 301.463257 | J193: 18.719999 | K193: 3.799999 | N193: 22.1 | O193: 156.158005 | P193: 14.54 | Q193: 3.8 | T193: 19.5 | U193: 454.125 | V193: 36.560001 | W193: 3.800003 | Z193: 19.9 | AA193: 273.769745 | AB193: 25.559999 | AC193: 3.799999 | AF193: 20.1 | AG193: 445.804749 | AH193: 21.540001 | AI193: 3.820002 | AL193: 20 | AM193: 384.526245 | AN193: 10.32 | AO193: 3.8 | AX193: 21.2 | AY193: 376.803497 | AZ193: 20.32 | BA193: 3.82 | BD193: 20.2 | BE193: 425.210236 | BF193: 36.380001 | BG193: 3.799999
B194: 19.8 | C194: 349.897 | D194: 13.72 | E194: 3.82 | H194: 21.9 | I194: 302.953491 | J194: 18.74 | K194: 3.82 | N194: 22.1 | O194: 156.869751 | P194: 14.56 | Q194: 3.82 | T194: 19.5 | U194: 456.267761 | V194: 36.580002 | W194: 3.820004 | Z194: 19.9 | AA194: 275.287994 | AB194: 25.58 | AC194: 3.82 | AF194: 20.1 | AG194: 447.839508 | AH194: 21.559999 | AI194: 3.84 | AL194: 20 | AM194: 383.390503 | AN194: 10.34 | AO194: 3.82 | AX194: 21.2 | AY194: 378.307007 | AZ194: 20.34 | BA194: 3.84 | BD194: 20.2 | BE194: 427.864014 | BF194: 36.400002 | BG194: 3.82
B195: 19.8 | C195: 350.749 | D195: 13.74 | E195: =SUM(D195,-9.9) -> 3.84 | H195: 21.9 | I195: 304.057739 | J195: 18.76 | K195: =SUM(J195,-14.92) -> 3.84 | N195: 22.1 | O195: 157.453995 | P195: 14.58 | Q195: =SUM(P195,-10.74) -> 3.84 | T195: 19.5 | U195: 458.139496 | V195: 36.599998 | W195: =SUM(V195,-32.759998) -> 3.84 | Z195: 19.9 | AA195: 277.248993 | AB195: 25.6 | AC195: =SUM(AB195,-21.76) -> 3.84 | AF195: 20.1 | AG195: 449.903259 | AH195: 21.58 | AI195: =SUM(AH195,-17.719999) -> 3.860001 | AL195: 20 | AM195: 382.43576 | AN195: 10.36 | AO195: =SUM(AN195,-6.52) -> 3.84 | AX195: 21.2 | AY195: 380.029755 | AZ195: 20.360001 | BA195: =SUM(AZ195,-16.5) -> 3.860001 | BD195: 20.2 | BE195: 430.763489 | BF195: 36.419998 | BG195: =SUM(BF195,-32.580002) -> 3.839996
B196: 19.8 | C196: 351.103 | D196: 13.76 | E196: 3.86 | H196: 21.9 | I196: 305.514252 | J196: 18.780001 | K196: 3.860001 | N196: 22.1 | O196: 158.225494 | P196: 14.6 | Q196: 3.86 | T196: 19.5 | U196: 460.432739 | V196: 36.619999 | W196: 3.860001 | Z196: 19.9 | AA196: 278.643005 | AB196: 25.620001 | AC196: 3.860001 | AF196: 20.1 | AG196: 451.474243 | AH196: 21.6 | AI196: 3.880001 | AL196: 20 | AM196: 381.787506 | AN196: 10.38 | AO196: 3.86 | AX196: 21.2 | AY196: 381.973236 | AZ196: 20.379999 | BA196: 3.879999 | BD196: 20.2 | BE196: 433.568756 | BF196: 36.439999 | BG196: 3.859997
B197: 19.8 | C197: 351.816 | D197: 13.78 | E197: 3.88 | H197: 21.9 | I197: 306.938263 | J197: 18.799999 | K197: 3.879999 | N197: 22.1 | O197: 158.917007 | P197: 14.62 | Q197: 3.88 | T197: 19.5 | U197: 462.621765 | V197: 36.639999 | W197: 3.880001 | Z197: 19.9 | AA197: 280.250488 | AB197: 25.639999 | AC197: 3.879999 | AF197: 20.1 | AG197: 453.691742 | AH197: 21.620001 | AI197: 3.900002 | AL197: 20 | AM197: 381.280762 | AN197: 10.4 | AO197: 3.88 | AX197: 21.2 | AY197: 383.674011 | AZ197: 20.4 | BA197: 3.9 | BD197: 20.2 | BE197: 435.837494 | BF197: 36.459999 | BG197: 3.879997
B198: 19.8 | C198: 352.084 | D198: 13.8 | E198: 3.9 | H198: 21.9 | I198: 308.308502 | J198: 18.82 | K198: 3.9 | N198: 22.1 | O198: 159.662506 | P198: 14.64 | Q198: 3.9 | T198: 19.5 | U198: 464.299011 | V198: 36.66 | W198: 3.900002 | Z198: 19.9 | AA198: 281.993744 | AB198: 25.66 | AC198: 3.9 | AF198: 20.1 | AG198: 455.385498 | AH198: 21.639999 | AI198: 3.92 | AL198: 20 | AM198: 380.788757 | AN198: 10.42 | AO198: 3.9 | AX198: 21.2 | AY198: 385.629761 | AZ198: 20.42 | BA198: 3.92 | BD198: 20.2 | BE198: 438.789764 | BF198: 36.48 | BG198: 3.899998
B199: 19.8 | C199: 352.51 | D199: 13.82 | E199: 3.92 | H199: 21.9 | I199: 309.769501 | J199: 18.84 | K199: 3.92 | N199: 22.1 | O199: 160.373001 | P199: 14.66 | Q199: 3.92 | T199: 19.5 | U199: 466.396515 | V199: 36.68 | W199: 3.920002 | Z199: 19.9 | AA199: 283.548492 | AB199: 25.68 | AC199: 3.92 | AF199: 20.1 | AG199: 457.417755 | AH199: 21.66 | AI199: 3.940001 | AL199: 20 | AM199: 380.286987 | AN199: 10.44 | AO199: 3.92 | AX199: 21.2 | AY199: 387.043762 | AZ199: 20.440001 | BA199: 3.940001 | BD199: 20.2 | BE199: 441.348999 | BF199: 36.5 | BG199: 3.919998
B200: 19.8 | C200: 353.095 | D200: 13.84 | E200: 3.94 | H200: 21.9 | I200: 310.840759 | J200: 18.860001 | K200: 3.940001 | N200: 22.1 | O200: 160.966248 | P200: 14.68 | Q200: 3.94 | T200: 19.5 | U200: 468.164001 | V200: 36.700001 | W200: 3.940003 | Z200: 19.9 | AA200: 285.346985 | AB200: 25.700001 | AC200: 3.940001 | AF200: 20.1 | AG200: 459.43576 | AH200: 21.68 | AI200: 3.960001 | AL200: 20 | AM200: 379.756744 | AN200: 10.46 | AO200: 3.94 | AX200: 21.2 | AY200: 388.83551 | AZ200: 20.459999 | BA200: 3.959999 | BD200: 20.2 | BE200: 444.173492 | BF200: 36.52 | BG200: 3.939998
... 1322 more rows
